Cogmind - Beta 15 @@@ ROGUE MODE // 2025.06.23 @ 17:07:14 Player: saltine Result: Destroyed by P-80 Master with Gamma Rifle Performance ------------- Evolutions (9) 4500 Regions Visited (33) 6600 Robots Destroyed (555) 2775 Value Destroyed (32760) 32760 Prototype IDs (166) 3320 Alien Tech Used (6) 1200 Bonus (26445) 26445 TOTAL SCORE: 77600 Bonus ------- Triggered High Security 500 High Alert Combat Kills 16397 Follower Combat Kills 2547 Awakened Behemoth Slayer 1000 Entered Garrisons 200 Network Hubs Disabled 400 Met Imprinter 300 Was Imprinted 300 Acquired ECA 300 Met Zhirov 300 Met Warlord at Base 500 MAIN.C Attacked Warlord 500 Warlord Defense Kills 910 Met R17 at Cetus 500 Used Core Reset Matrix 3000 Scanned by Researcher 500 Destroyed MAIN.C Guards 500 Friendly Fire -2209 Cogmind --------- Core Integrity 0/1600 Matter 126/300 Energy 46/100 System Corruption 51% Temperature Cool (0) Movement Core (1050) Ox20 Location -1/Command Parts ------- > --- POWER (3) -------- (None) > --- PROPULSION (6) --- (None) > --- UTILITY (12) ----- Concept Antigrav Storage Unit Improved Targeting Computer Concept RG22 Armor > --- WEAPON (4) ------- Graviton Cannon Graviton Cannon > --- INVENTORY (25) --- Zero-point Reactor Zero-point Reactor Flexi-carbon Leg Experimental Cooling System 2N-1CE's Frost Array Experimental Coolant Injector Concept Chromion Battery (800) Long-range IFF Parser Core Shielding AEGIS Remote Shield AEGIS Remote Shield Concept Antimissile System Transdimensional Reconstructor Peak State ------------ > --- POWER ------------ Experimental Antimatter Reactor Experimental Antimatter Reactor Experimental Antimatter Reactor > --- PROPULSION ------- Experimental Armored Exoskeleton Concept Biometal Exoskeleton > --- UTILITY ---------- 2N-1CE's Frost Array Concept Antigrav Storage Unit Spectral Analyzer Concept Core Analysis Suite Experimental Transmission Jammer Experimental Cloaking Device SHELL Armor Concept RG22 Armor Concept Beam Splitter Experimental Force Field > --- WEAPON ----------- Improved Potential Cannon Sigix Broadsword > --- INVENTORY -------- Concept Zero-point Core Concept Zero-point Core Concept Biometal Exoskeleton Concept Biometal Exoskeleton Concept Thermoelectric Network Concept Chromion Battery Concept Chromion Battery Compact Matter Pod Long-range IFF Parser Launcher Loader Concept RG22 Armor Experimental EM Shield Experimental Force Field Concept Antimissile System Concept Network Penetrator Transdimensional Reconstructor Concept Plasma Driver Improved Potential Cannon Concept Heavy Railcannon [Rating: 307] Favorites ----------- Power Zionite Heavy DM Reactor Engine Subdweller Power Source Power Core Light Nuclear Core Reactor Zionite Heavy DM Reactor Propulsion Enhanced Biometal Leg Treads Light Treads Leg Enhanced Biometal Leg Utility High-capacity Storage Unit Device Seismic Detector Storage High-capacity Storage Unit Processor Core Analyzer Hackware Advanced Hacking Suite Protection Centrium Medium Armor Plating Weapon CR-A16's Behemoth Slayer Energy Gun Small Laser Energy Cannon Heavy Plasma Cannon Ballistic Gun Enhanced Autogun Ballistic Cannon Heavy Assault Cannon Launcher Precision Rocket Launcher Special Weapon Mining Laser Impact Weapon Core Stripper Slashing Weapon Sigix Broadsword Piercing Weapon CR-A16's Behemoth Slayer Special Melee Weapon Advanced Datajack Build | -11 -10 -10 -10 -8 -8 -8 -7 -7 -7 -7 -6 -6 -6 -6 -6 -6 -5 -5 -5 -5 -4 -4 -4 -4 -4 -3 -3 -3 -2 -2 -2 -1 -1 ------- Run | Yrd Mat Min Sub Mat Gar Mat Fac Low Low Zio Pro Fac Ext Cet Arc Hub Fac Upp Upp Zhi Pro Fac Upp Upp War Pro Res Tes Res Qua Frg Acc Com Slots Evolved 18 | . . . . 4 . . 2 . . . . 2 . . . . 2 . . . . 2 . . . . 2 . 2 . . 2 . Power 2 | . . . . . . . . . . . . 1 . . . . . . . . . . . . . . . . 1 . . . . Propulsion 4 | . . . . 1 . . 1 . . . . 1 . . . . . . . . . . . . . . 1 . . . . . . Utility 10 | . . . . 3 . . 1 . . . . . . . . . 2 . . . . 1 . . . . 1 . 1 . . 1 . Weapon 2 | . . . . . . . . . . . . . . . . . . . . . . 1 . . . . . . . . . 1 . Parts Attached 289 | 1 9 5 11 25 10 8 12 3 3 3 9 7 14 4 6 10 17 2 7 5 1 . 2 2 11 2 3 12 5 21 28 . 31 Power 40 | . 1 1 3 2 3 1 1 . 1 . 1 3 1 . 1 3 3 . 1 1 . . . . 1 . . . 2 3 4 . 3 Engine 16 | . 1 1 3 2 . . 1 . . . 1 2 1 . . 3 . . 1 . . . . . . . . . . . . . . Core 7 | . . . . . 2 1 . . 1 . . . . . . . 1 . . . . . . . . . . . . . . . 2 Reactor 17 | . . . . . 1 . . . . . . 1 . . 1 . 2 . . 1 . . . . 1 . . . 2 3 4 . 1 Propulsion 59 | . 4 . 2 6 2 3 6 1 . . 1 1 6 1 . 5 1 . 1 1 . . . . 1 2 . 4 . 3 5 . 3 Treads 13 | . 2 . 2 6 2 . . . . . . . . . . . . . . . . . . . . . . . . . . . 1 Leg 46 | . 2 . . . . 3 6 1 . . 1 1 6 1 . 5 1 . 1 1 . . . . 1 2 . 4 . 3 5 . 2 Wheel . | . . . . . . . . . . . . . . . . . . . . . . . . . . . . . . . . . . Hover . | . . . . . . . . . . . . . . . . . . . . . . . . . . . . . . . . . . Flight . | . . . . . . . . . . . . . . . . . . . . . . . . . . . . . . . . . . Utility 130 | 1 1 1 3 9 3 3 3 2 1 1 5 1 4 2 2 2 11 1 3 2 1 . 2 2 6 . 3 7 3 11 15 . 19 Device 59 | 1 . 1 . 3 . 2 . 2 . . 2 . 1 . 2 2 5 1 2 2 1 . 1 1 3 . . 5 1 8 8 . 5 Storage 12 | . 1 . 1 1 . . . . . . 1 . . . . . 1 . . . . . . . 1 . . . 1 1 2 . 2 Processor 17 | . . . . . . . 2 . . . 1 1 . . . . 2 . . . . . . . 1 . 1 1 1 1 4 . 2 Hackware 2 | . . . . . . . . . . . . . . . . . . . . . . . . . . . 1 . . 1 . . . Protection 40 | . . . 2 5 3 1 1 . 1 1 1 . 3 2 . . 3 . 1 . . . 1 1 1 . 1 1 . . 1 . 10 Artifact . | . . . . . . . . . . . . . . . . . . . . . . . . . . . . . . . . . . Weapon 60 | . 3 3 3 8 2 1 2 . 1 2 2 2 3 1 3 . 2 1 2 1 . . . . 3 . . 1 . 4 4 . 6 Energy Gun 2 | . . . . . . . . . . . . . . . . . 2 . . . . . . . . . . . . . . . . Energy Cannon 20 | . . 2 3 1 2 . . . . . 1 1 1 . . . . . 1 . . . . . 2 . . 1 . 1 4 . . Ballistic Gun 10 | . 2 . . 5 . 1 . . . . . . . . 2 . . . . . . . . . . . . . . . . . . Ballistic Cannon 6 | . . . . . . . 1 . . . . . . . . . . . 1 . . . . . 1 . . . . . . . 3 Launcher 12 | . 1 . . 1 . . 1 . . 1 . 1 1 1 . . . 1 . . . . . . . . . . . 1 . . 3 Special Weapon 2 | . . 1 . . . . . . 1 . . . . . . . . . . . . . . . . . . . . . . . . Impact Weapon 2 | . . . . 1 . . . . . . . . . . . . . . . . . . . . . . . . . 1 . . . Slashing Weapon 1 | . . . . . . . . . . . . . . . . . . . . . . . . . . . . . . 1 . . . Piercing Weapon 4 | . . . . . . . . . . 1 1 . 1 . . . . . . 1 . . . . . . . . . . . . . Special Melee Weapon 1 | . . . . . . . . . . . . . . . 1 . . . . . . . . . . . . . . . . . . Unidentified Prototypes 62 | . . . . 2 . . . . . . 2 2 2 1 1 2 6 . 1 4 . . . . 9 . 2 6 . 7 9 . 6 Corrupted Parts 8 | . . . . . . . . . 1 . 1 . . . 3 1 . . . . . . . . . . . 1 . . 1 . . System Corruption 42 | . . . . . . . . . 6 . 4 . . . 13 10 . . . . . . . . . . . 3 . . 6 . . Parts Lost 70 | . . 2 3 . . . 5 1 2 . . 1 2 . . 6 . 1 5 . . . . . . . . 1 2 1 4 . 34 Power 14 | . . . 2 . . . 1 . 1 . . 1 . . . 1 . . 1 . . . . . . . . . . . 1 . 6 Propulsion 16 | . . . 1 . . . 2 1 . . . . 1 . . 5 . . 1 . . . . . . . . . . . . . 5 Utility 28 | . . 1 . . . . 1 . . . . . 1 . . . . 1 3 . . . . . . . . 1 2 . 2 . 16 Weapon 12 | . . 1 . . . . 1 . 1 . . . . . . . . . . . . . . . . . . . . 1 1 . 7 Highest Loss Streak 17 | . . 2 1 . . . 4 1 1 . . 1 2 . . 4 . 1 4 . . . . . . . . 1 1 1 2 . 17 To Critical Strikes 2 | . . . . . . . . . . . . . . . . . . . . . . . . . . . . . . . . . 2 Average Backups 17 | 6 7 11 14 15 17 17 17 18 18 18 17 17 17 18 18 18 17 17 18 17 18 17 18 18 17 17 17 17 20 21 21 19 16 Power 1 | 1 1 1 1 . 1 1 1 1 . 1 2 . 1 2 1 2 2 2 2 2 2 2 2 2 2 2 2 1 2 2 2 2 2 Propulsion 3 | 4 4 4 3 2 4 4 4 4 4 3 3 3 4 4 4 3 1 3 3 2 3 3 3 3 3 3 2 2 3 4 2 2 2 Utility 6 | . . 2 4 3 4 3 4 6 7 6 5 6 5 4 5 5 7 6 6 6 7 7 8 8 7 7 7 8 9 8 9 11 8 Weapon 4 | 1 2 4 5 6 5 6 5 3 3 5 5 6 6 6 7 7 5 4 5 4 5 4 4 4 4 4 4 3 4 4 4 3 2 Tool/Special . | . . . . . . . . . . . . . . . . . . . . . . . . . . . . . . . . . . Unused Backups 69 | . 6 . 6 8 4 . . 1 1 2 3 1 . 1 1 1 2 . 1 3 . . 2 . 2 1 . 3 . 3 8 . 9 Power 13 | . 1 . . . . . . . 1 . 1 . . 1 1 . 1 . . 2 . . . . 1 . . . . 2 . . 2 Propulsion 16 | . 2 . 3 1 2 . . . . . 1 . . . . . . . 1 . . . 1 . 1 . . 1 . . 2 . 1 Utility 26 | . 1 . . 5 2 . . 1 . . 1 1 . . . . . . . 1 . . 1 . . 1 . 2 . 1 4 . 5 Weapon 11 | . 2 . 3 2 . . . . . . . . . . . 1 1 . . . . . . . . . . . . . 2 . . Tool/Special 3 | . . . . . . . . . . 2 . . . . . . . . . . . . . . . . . . . . . . 1 Average Slot Usage (%) 92 | . 97 95 99 98 100 100 90 91 92 93 99 99 97 100 99 99 98 99 98 99 100 98 100 100 93 89 86 85 79 80 73 62 62 Engine 2 | . 14 14 13 7 2 . 2 5 . . 5 8 6 6 6 6 3 . . 2 . . . . . . . . . . . . . Core 1 | . . . . . 4 7 4 . 4 7 1 . . . . . . . . . . . . . . . . . . . . . 2 Reactor 5 | . . . . . . . . 1 2 . . 3 6 6 6 6 6 11 9 8 11 10 10 10 6 5 4 6 8 9 9 12 8 Treads 4 | . 9 28 28 24 23 10 . . . . . . . . . . . . . . . . . . . . . . . . . . . Leg 22 | . 18 . . . . 14 29 29 30 30 30 33 31 33 33 32 29 29 28 29 29 26 26 26 26 26 25 27 25 26 19 8 7 Device 16 | . 11 10 7 12 11 8 12 15 14 14 14 13 7 6 6 9 11 22 21 26 29 30 25 30 22 20 19 14 14 15 20 22 15 Storage 6 | . 14 14 14 8 7 7 7 7 7 7 7 6 6 6 6 6 5 5 5 5 5 5 5 5 5 5 4 4 4 4 4 4 4 Processor 8 | . . . . . . . 6 15 15 15 15 13 13 13 13 13 16 11 9 5 5 5 5 5 8 10 13 14 12 12 5 4 4 Protection 8 | . . . 5 19 18 24 15 7 7 7 7 6 11 13 12 9 10 5 6 7 5 5 10 6 9 10 7 5 5 4 4 4 11 Energy Cannon 4 | . . 10 22 9 2 2 . . 3 . 5 6 1 1 1 2 3 5 1 5 5 5 5 5 3 . . 1 4 2 2 4 4 Ballistic Gun 2 | . 25 8 . 14 27 22 2 . . . . . . . 9 5 . . . . . . . . . . . . . . . . . Ballistic Cannon 1 | . . . . . . . 5 6 3 5 . . . . . . . . . . . 3 4 5 4 4 4 2 . . . . . Piercing Weapon 2 | . . . . . . . . . . 1 7 6 11 . . 4 4 5 4 4 5 5 5 5 5 2 3 4 4 3 1 . . Peak Build Rating 307 | 7 8 8 16 50 57 57 53 52 53 52 62 73 87 97 104 108 121 121 126 128 127 137 141 139 159 161 172 195 204 229 286 293 307 Average Rating 110 | 6 6 7 12 37 51 49 49 48 47 48 56 71 78 92 101 97 110 110 110 115 126 132 139 138 150 159 166 179 190 199 248 281 262 On Entrance 104 | 6 7 8 8 14 48 56 43 51 49 48 52 58 73 86 97 104 108 120 119 110 128 127 135 138 138 157 158 169 191 182 229 283 267 Naked Turns . | . . . . . . . . . . . . . . . . . . . . . . . . . . . . . . . . . . Heaviest Build 219 | 12 30 32 45 76 86 83 77 74 81 67 68 88 95 100 98 98 117 116 121 107 99 114 125 121 131 137 137 148 195 185 219 150 163 Greatest Support 180 | 20 40 40 40 76 84 84 80 80 70 70 70 98 118 118 118 126 136 136 136 128 128 128 128 128 136 138 138 165 165 173 180 158 158 Greatest Overweight (x) 32 | . 1 . 1 . 1 2 . 1 1 . . . 1 . 32 . . . . . . . . . . . . . 1 1 1 . 1 Average Overweight (x) . | . . . . . . . . . . . . . . . 1 . . . . . . . . . . . . . . . . . . Largest Inventory Capacity 25 | 8 15 15 15 20 20 20 20 20 20 20 20 20 20 20 20 20 20 20 20 20 20 20 20 20 20 20 20 20 25 25 25 25 25 Average Capacity 20 | 8 10 15 15 16 20 20 20 20 20 20 20 20 20 20 20 20 20 20 20 20 20 20 20 20 20 20 20 20 24 25 25 25 25 Most Carried 25 | 6 11 15 15 20 20 20 20 20 20 20 20 20 20 20 20 20 20 20 20 20 20 20 20 20 20 20 20 20 25 25 25 25 25 Average Carried 19 | 6 7 11 14 16 19 19 19 19 19 19 19 19 19 19 19 19 19 19 19 19 19 19 19 20 19 19 19 19 23 24 24 24 20 Final Capacity 25 | 8 15 15 15 20 20 20 20 20 20 20 20 20 20 20 20 20 20 20 20 20 20 20 20 20 20 20 20 20 25 25 25 25 25 Final Carried 25 | 6 11 15 15 20 20 20 19 20 20 20 20 20 20 20 20 20 20 20 20 20 20 20 20 20 20 20 20 20 25 25 25 25 25 Class Distribution -------------------- 40% | Scavenger-Mutant 18% | Messiah-Mutant 15% | Mutant 7% | Tank 6% | Alien-Mutant Dominant Class ---------------- Scavenger-Mutant | -10/Materials Scavenger-Mutant | -10/Mines Mutant | -10/Subcaves Tank | -8/Materials Tank | -8/Garrison Tank | -8/Materials Mutant | -7/Factory Mutant | -7/Lower Caves Scavenger-Mutant | -7/Lower Caves Scavenger-Mutant | -7/Zion Scavenger-Mutant | -6/Proximity Caves Scavenger-Mutant | -6/Factory Scavenger-Mutant | -6/Extension Commander-Mutant | -6/Cetus Scavenger-Mutant | -6/Archives Scavenger-Mutant | -6/Hub_04(d) Scavenger-Mutant | -5/Factory Scavenger-Mutant | -5/Upper Caves Scavenger-Mutant | -5/Upper Caves Messiah-Mutant | -5/Zhirov Messiah-Mutant | -4/Proximity Caves Messiah-Mutant | -4/Factory Messiah-Mutant | -4/Upper Caves Messiah-Mutant | -4/Upper Caves Messiah-Mutant | -4/Warlord Messiah-Gunner | -3/Proximity Caves Messiah-Mutant | -3/Research Scavenger-Mutant | -3/Testing Scavenger-Assassin | -2/Research Scavenger-Mutant | -2/Quarantine Alien-Mutant | -2/Protoforge Alien-Mutant | -1/Access Alien-Mutant | -1/Command Resources | -11 -10 -10 -10 -8 -8 -8 -7 -7 -7 -7 -6 -6 -6 -6 -6 -6 -5 -5 -5 -5 -4 -4 -4 -4 -4 -3 -3 -3 -2 -2 -2 -1 -1 ----------- Run | Yrd Mat Min Sub Mat Gar Mat Fac Low Low Zio Pro Fac Ext Cet Arc Hub Fac Upp Upp Zhi Pro Fac Upp Upp War Pro Res Tes Res Qua Frg Acc Com Matter Collected 14980 | 219 367 143 424 831 1237 574 349 511 401 250 312 85 272 144 100 135 547 55 371 230 30 62 106 60 586 413 177 825 160 582 2900 . 1522 Remotely . | . . . . . . . . . . . . . . . . . . . . . . . . . . . . . . . . . . Salvage Created 27308 | 89 318 184 560 1234 1283 603 482 47 182 . 120 . 980 704 143 1116 282 81 478 230 . 109 227 100 482 231 190 1285 1053 1201 6861 203 6250 Parts 1238 | 8 22 20 37 84 72 36 29 3 11 . 12 . 29 24 15 48 11 3 18 22 . 3 6 6 17 9 6 69 47 49 301 9 212 Haulers Intercepted 13 | . 2 . . 5 . 1 1 . . . . . . . . 2 . . . . . . . . . . 1 1 . . . . . Recyclers Shooed 3 | 1 . . . 1 . . . . . . . . . . . 1 . . . . . . . . . . . . . . . . . Parts Field Recycled . | . . . . . . . . . . . . . . . . . . . . . . . . . . . . . . . . . . Retrieved Matter . | . . . . . . . . . . . . . . . . . . . . . . . . . . . . . . . . . . Parts Self-Destructed 78 | . . . 8 . . . . 2 11 . 16 . . . . . . 3 9 17 . . 5 5 . 2 . . . . . . . Prevented 18 | . . . . . . . . 1 . . 4 . . . . . . . 6 . . . . . . 7 . . . . . . . Kills | -11 -10 -10 -10 -8 -8 -8 -7 -7 -7 -7 -6 -6 -6 -6 -6 -6 -5 -5 -5 -5 -4 -4 -4 -4 -4 -3 -3 -3 -2 -2 -2 -1 -1 ------- Run | Yrd Mat Min Sub Mat Gar Mat Fac Low Low Zio Pro Fac Ext Cet Arc Hub Fac Upp Upp Zhi Pro Fac Upp Upp War Pro Res Tes Res Qua Frg Acc Com Combat Hostiles Destroyed 462 | . 8 6 13 30 30 13 13 2 7 . 1 . 10 8 . 7 3 1 11 . . 2 4 1 7 7 . 16 10 17 110 2 123 Melee 25 | . . . . . . . . . . . 1 . 2 . . . . . . . . 1 . . . . . . . . 18 . 3 Guns 51 | . 5 . . 13 23 7 . . . . . . . . . 3 . . . . . . . . . . . . . . . . . Cannons 158 | . . 1 9 9 1 . 6 2 6 . . . 2 1 . 2 3 . 6 . . . 1 . 7 3 . 12 5 9 34 2 37 AOE 167 | . 3 5 3 8 6 6 6 . 1 . . . 2 . . 2 . . 4 . . . 3 . . 3 . . . 5 40 . 70 Classes Destroyed 32 | 2 3 2 2 4 2 1 2 1 1 . 1 . . . . . . . . . . . . . . . . 3 . 1 5 . 2 Worker 16 | . . . . 1 . 3 2 . . . . . . . . 7 . . . . . . . . . . . 2 . . . . 1 Builder 19 | . . 1 . . . 2 3 . . . . . . . . 2 1 . . . . . . . . . . 2 1 . 6 1 . Tunneler 5 | 1 . 3 . 1 . . . . . . . . . . . . . . . . . . . . . . . . . . . . . Hauler 13 | . 2 . . 5 . 1 1 . . . . . . . . 2 . . . . . . . . . . 1 1 . . . . . Recycler 10 | 1 . . . . . 1 . . . . . . 2 . . 2 1 . . . . . . . . . 1 1 1 . . . . Carrier 3 | . . . . . . . . . . . . . . . . . . . . . . . . . . . . . . . 2 . 1 Mechanic 9 | . . 1 . . . . . . . . . . . . . . . . . . . . . . . . . . . . 1 . 7 Operator 7 | . . . . . . . 1 . . . . . . . 4 . . . . . . . . . . . . . 1 . 1 . . Drone 5 | . . . . . . . . . . . 1 . . . . . . . . . . . . . . 2 . . . . 2 . . Watcher 4 | . . . . 1 . . 1 . . . . . . 2 . . . . . . . . . . . . . . . . . . . Swarmer 53 | . 3 2 3 14 3 4 3 . 3 . . . . . . . . . 5 . . . . . . . . . . 4 . . 9 Saboteur 18 | . . . . . . . . . . . . . . . . . . . . . . . . . . . . . . . 6 . 12 Grunt 154 | . 5 4 . 10 12 4 7 . 4 . . . 6 . . 1 1 . 3 . . . 4 . 6 3 . 3 . 2 32 . 47 Brawler 21 | . . . . 1 3 . . . . . . . . . . . . . . . . . . . . . . 1 . . 5 . 11 Duelist 9 | . . . . . 2 . . . . . . . . . . . . . . . . . . . . . . . . . 3 . 4 Protector 9 | . . . . . . 1 . . . . . . . . . . . . . . . . . . 1 . . . . . 1 . 6 Researcher 4 | . . . . . . . . . . . . . . . . . . . . . . . . . . . . 1 . . 3 . . Sentry 40 | . . . . 5 7 3 1 . . . . . 1 . . 2 . 1 2 . . . . . . . . . 4 . 14 . . Specialist 2 | . . . . . . . . . . . . . . . . . . . . . . . . . . . . 1 . 1 . . . Hunter 17 | . . . . . 3 1 1 1 . . . . 2 . . . . . . . . . . . . 2 . 2 2 . . 2 1 Programmer 63 | . . . . . . . 1 . . . . . . . . 1 2 . . . . 2 . . . . . 8 2 9 25 . 13 Behemoth 6 | . . . . . . . . 1 . . . . . . . . . . 1 . . . . 1 . . . . 2 . 1 . . Cetus Guard 8 | . . . . . . . . . . . . . . 8 . . . . . . . . . . . . . . . . . . . M Guard 2 | . . . . . . . . . . . . . . . . . . . . . . . . . . . . . . . . . 2 Enhanced Grunt 1 | . . . . . . . . . . . 1 . . . . . . . . . . . . . . . . . . . . . . Lightning 3 | . . . . . . . . . . . . . . . . 3 . . . . . . . . . . . . . . . . . Hotshot 4 | . . . . . . . . . . . . . . . . . . . . . . . . . . . . . . . 4 . . Decapitator 8 | . . . . . . . . . . . . . . . . . . . . . . . . . . . . . . . 8 . . Immortal 3 | . . . . . . . . . . . . . . . . . . . . . . . . . . . . . . . 3 . . Combat Programmer 2 | . . . . . . . . . . . . . . . . . . . . . . . . . . . . . . . . . 2 Investigator 1 | . . . . . . . . . . . . . . . . . . . . . . . . . . . . . . . . . 1 Striker 7 | . . . . . . . . . . . . . . . . . . . . . . . . . . . . . . . . . 7 Executioner 9 | . . . . . . . . . . . . . . . . . . . . . . . . . . . . . . . . . 9 Alpha 7 2 | . . . . . . . . . . . . . . . . . . . . . . . . . . . . . . . 2 . . Fortress 1 | . . . . . . . . . . . . . . . . . . . . . . . . . . . . . . 1 . . . V-Series 4 | . . . . . . . . . . . . . . . . . . . . . . . . . . . . . . . 4 . . Artisan 3 | . . . 3 . . . . . . . . . . . . . . . . . . . . . . . . . . . . . . Subdweller 10 | . . . 10 . . . . . . . . . . . . . . . . . . . . . . . . . . . . . . Z-Light 1 | . . . . . . . . . . . . . . . . . . . . . . . . . . . . 1 . . . . . Tinkerer 1 | . . . . . . . . . 1 . . . . . . . . . . . . . . . . . . . . . . . . Surgeon 1 | . . . . . . . . . . . . . . . . . . . . . . . . . 1 . . . . . . . . Thug 1 | . . . . . . . . . . . . . 1 . . . . . . . . . . . . . . . . . . . . Best Kill Streak 39 | 2 4 5 3 7 5 5 9 1 4 . 1 . 5 5 2 6 2 1 4 . . 2 4 1 4 3 1 6 3 4 16 3 39 Combat Bots Only 36 | . 3 4 3 5 5 5 4 1 4 . 1 . 3 4 . 2 2 1 4 . . 2 4 1 4 3 . 4 3 4 15 2 36 Max Kills in Single Turn 7 | 1 3 2 2 4 2 1 4 1 1 . 1 . 2 2 1 2 1 1 2 . . 1 2 1 1 1 1 1 1 3 4 2 7 Gunslinging . | . . . . . . . . . . . . . . . . . . . . . . . . . . . . . . . . . . Exploded 7 | . 3 2 2 4 2 1 2 . 1 . . . 1 . . 1 . . 2 . . . 2 . . 1 . . . 3 3 . 7 Melee 1 | . . . . . . . . . . . 1 . 1 . . . . . . . . 1 . . . . . . . . 1 . 1 Uniques/NPCs Destroyed . | . . . . . . . . . . . . . . . . . . . . . . . . . . . . . . . . . . Combat | -11 -10 -10 -10 -8 -8 -8 -7 -7 -7 -7 -6 -6 -6 -6 -6 -6 -5 -5 -5 -5 -4 -4 -4 -4 -4 -3 -3 -3 -2 -2 -2 -1 -1 -------- Run | Yrd Mat Min Sub Mat Gar Mat Fac Low Low Zio Pro Fac Ext Cet Arc Hub Fac Upp Upp Zhi Pro Fac Upp Upp War Pro Res Tes Res Qua Frg Acc Com Hostile Shots Fired 3246 | . 24 18 36 92 117 42 116 38 50 . 17 1 129 21 2 150 39 14 45 . . 5 20 14 . 66 2 110 80 81 608 3 1306 Missed 916 | . 4 6 9 22 24 20 33 10 19 . 3 1 57 12 1 46 8 2 10 . . 3 5 2 . 24 2 43 13 30 190 2 315 Intercepted 7 | . . . . . . . . . . . . . . . . . . . . . . . . . . . . . . . . . 7 Hits 2330 | . 20 12 27 70 93 22 83 28 31 . 14 . 72 9 1 104 31 12 35 . . 2 15 12 . 42 . 67 67 51 418 1 991 Melee 96 | . . . . . 1 . . . . . . . . . . . . . . . . . . . . . . 1 . . 26 . 68 Projectile 2234 | . 20 12 27 70 92 22 83 28 31 . 14 . 72 9 1 104 31 12 35 . . 2 15 12 . 42 . 66 67 51 392 1 923 AOE 13 | . . . 2 . . . . . . . . . . . . 1 . . . . . . . . 1 . . . . . 7 . 2 Critical Strikes 141 | . . 1 . 3 5 . . . 1 . 1 . 1 1 . 7 1 . 1 . . 1 2 2 . 1 . 2 2 4 34 . 71 Actively Blocked 4 | . . . . . . . . . . . . . . . . . . . . . . . . . . . . . 1 . . . 3 Part Disruptions 14 | . . . . . . . . . . . . . . . . 2 2 . . . . . . . . . . 1 . . 3 . 6 Damage Taken 36669 | . 252 206 691 831 1284 241 1220 576 480 . 213 79 1106 242 24 2193 145 331 802 . . 10 294 369 355 567 . 1000 998 1234 5552 11 15363 Core 3245 | . 29 38 66 78 161 18 115 156 24 . 19 . 78 28 . 124 5 29 33 . . . 20 . 90 45 . 37 34 41 363 . 1614 Absorbed by Shields 10236 | . . . . . . 44 72 . . . . . . . . . . . . . . . . . 7 71 . 275 440 60 2314 11 6942 Redirected to Shielding 369 | . . . . . . . . . . . . . . . . . . . 58 . . . . . . 23 . 11 36 . . . 241 Ignored by Resistances 11582 | . . . . 78 . . . . . . . . . . . 457 489 . . . . 32 . . . 130 . 51 206 . 4229 . 5910 Regen/Repaired (Parts) 9303 | . . . . . . . . . . . . . . . . . 228 . . . . . . . 602 . . 914 401 715 3350 106 2987 Core Remaining (%) 73 | 100 . . 46 . . 53 . . . . 55 . . . . 72 . . . . 93 . . . . 86 . 97 . . 62 . . Volleys Fired 1408 | 3 27 34 104 62 78 45 49 16 34 26 7 6 23 8 . 44 23 13 20 16 2 6 3 4 23 20 3 78 51 62 272 9 237 Largest 4 | 2 2 2 2 4 4 4 2 1 1 1 1 1 1 2 . 2 1 1 2 1 1 2 2 1 1 2 1 1 1 2 2 1 1 Hottest 340 | 60 40 120 160 148 98 98 80 75 80 80 80 90 90 86 . 90 90 90 146 30 90 146 146 90 110 119 76 76 40 200 340 140 200 Shots Fired 1780 | 6 53 37 125 163 216 101 50 16 34 26 7 6 23 15 . 58 23 13 22 16 2 11 5 4 23 22 3 78 51 65 265 9 232 Gun 466 | 6 52 4 . 103 185 79 . . . . . . . . . 37 . . . . . . . . . . . . . . . . . Cannon 1092 | . . 26 68 56 26 16 35 16 30 1 5 6 11 1 . 21 17 13 20 . 2 11 3 4 23 16 3 78 51 63 248 9 213 Launcher 115 | . 1 6 3 4 5 6 15 . 1 . . . 12 14 . . . . 2 . . . 2 . . 6 . . . 2 17 . 19 Special 107 | . . 1 54 . . . . . 3 25 2 . . . . . 6 . . 16 . . . . . . . . . . . . . Kinetic 590 | 3 52 4 . 103 185 79 25 10 18 . . . . . . 37 . . 2 . . 5 1 . 22 7 3 15 . . . . 19 Thermal 1023 | 3 . 27 122 56 23 16 1 . 15 26 5 6 11 . . 18 23 13 6 16 2 6 2 4 1 . . 56 51 63 248 9 194 Explosive 78 | . 1 6 3 4 5 6 15 . 1 . . . . . . . . . 2 . . . 2 . . 6 . . . 2 7 . 18 Electromagnetic 88 | . . . . . 3 . 9 6 . . 2 . 12 15 . 3 . . 12 . . . . . . 9 . 7 . . 10 . . Robot Hit Streak 26 | 4 16 5 8 11 14 13 7 14 12 9 3 2 6 7 . 5 9 12 13 24 . 26 4 . 7 9 4 21 12 20 7 2 19 Robot Miss Streak 6 | . 1 3 3 4 2 6 4 4 3 6 2 2 1 1 . 5 3 . 1 . . 1 . . 3 2 . 2 2 3 6 1 5 Penetration Max 2 | . . . . . . . 1 . . . . . . . . 1 . . . . . . . . . . . . . . 1 1 2 Secondary Targets 8 | . . . . . 5 2 . . . . . . . . . 1 . . . . . . . . . . . . . . . . . Max Gunslinging Chain 1 | . . . . . 1 1 . . . . . . . . . 1 . . . . . . . . . . . . . . . . . Capacitor 218 | . . . . . . . . . . . . . . . . . . . . . . . . . . . . . . 47 171 . . Shots Hit Robots 1101 | 4 44 22 40 92 123 55 26 12 21 12 10 3 29 2 12 46 20 8 18 17 . 7 2 1 13 14 4 56 40 41 168 2 137 Core Hits 750 | 3 20 14 16 49 58 35 38 4 11 8 4 1 18 14 6 33 7 2 11 6 . 1 8 . 9 9 2 20 12 17 117 3 194 Critical Kills 40 | . . . 1 . 1 1 . . . . . . . . . 3 . . . . . 1 . . . . . 2 3 2 16 . 10 Critical Parts Destroyed 5 | . . . . 1 . . . . . . . . . . . 1 . . 1 . . 2 . . . . . . . . . . . Critical Strikes 79 | . . . 1 1 1 1 1 2 2 . . . . . . 4 . . 2 . . 3 . . 4 1 1 10 3 2 22 . 18 Meltdown 36 | . . . 1 . . 1 . . . . . . . . . . . . . . . 1 . . . . . 2 3 2 16 . 10 Destroy 9 | . . . . 1 1 . . . . . . . . . . 4 . . 1 . . 2 . . . . . . . . . . . Blast 22 | . . . . . . . 1 2 2 . . . . . . . . . . . . . . . 4 1 1 3 . . . . 8 Corrupt 4 | . . . . . . . . . . . . . . . . . . . 1 . . . . . . . . 3 . . . . . Sever 4 | . . . . . . . . . . . . . . . . . . . . . . . . . . . . . . . 4 . . Impale 4 | . . . . . . . . . . . . . . . . . . . . . . . . . . . . 2 . . 2 . . Melee Attacks 345 | . . . . . . . . . . . 8 3 24 . 13 14 11 16 10 1 6 6 6 19 . 14 4 41 13 13 114 3 6 Kinetic 3 | . . . . . . . . . . . . . . . . . . . . . . . . . . . . . . 3 . . . Impact . | . . . . . . . . . . . . . . . . . . . . . . . . . . . . . . . . . . Slashing 97 | . . . . . . . . . . . . . . . . . . . . . . . . . . . . . . 2 86 3 6 Piercing 243 | . . . . . . . . . . . 8 3 24 . 11 14 11 16 10 1 6 6 6 19 . 14 4 41 13 8 28 . . Sneak Attacks 40 | . . . . . . . . . . . 6 . 2 . 8 9 3 . . . . . . . . . 1 4 3 . 4 . . Combat Hostiles 3 | . . . . . . . . . . . 1 . 1 . . . . . . . . . . . . . . . . . 1 . . Follow-up Attacks 11 | . . . . . . . . . . . . . . . . . . . . . . . . . . . . . . . 11 . . Damage Inflicted 99054 | 50 559 746 1094 2168 2509 1575 2436 585 880 86 410 111 1786 1223 538 2035 682 257 1049 123 . 322 442 . 1114 1367 245 3690 2110 3256 27452 327 37827 Guns 4905 | 50 429 27 . 1132 1825 742 . . . . . . . . . 700 . . . . . . . . . . . . . . . . . Cannons 45383 | . . 261 880 691 71 182 1085 585 748 . 48 111 271 27 . 456 430 257 596 . . 272 40 . 1114 741 157 3319 1867 2177 13490 327 15180 Explosions 41092 | . 124 458 214 299 613 639 1331 . 124 . . . 1043 1196 . 109 . . 420 . . . 402 . . 626 . . . 984 10120 . 22390 Melee 7237 | . . . . . . . . . . . 349 . 441 . 538 726 212 . 33 . . 50 . . . . 88 371 243 95 3842 . 249 Ramming 167 | . 6 . . 46 . 12 20 . . . . . 31 . . 44 . . . . . . . . . . . . . . . . 8 Kinetic 11664 | 15 429 27 . 1132 1825 742 947 514 518 . . . . . . 700 . . 18 . . 68 . . 1114 481 157 1176 . 95 . . 1706 Thermal 58940 | 35 . 261 880 691 . 182 17 . 238 86 61 111 321 . . 483 470 257 126 123 . 204 40 . . . . 1814 1867 2577 22141 327 25628 Explosive 17126 | . 124 458 214 299 613 639 1026 . 124 . . . . . . . . . 420 . . . 402 . . 626 . . . 584 1361 . 10236 Electromagnetic 4015 | . . . . . 71 . 426 71 . . . . 993 1223 . 82 . . 452 . . . . . . 260 . 329 . . 108 . . Impact . | . . . . . . . . . . . . . . . . . . . . . . . . . . . . . . . . . . Slashing 3716 | . . . . . . . . . . . . . . . . . . . . . . . . . . . . . . . 3467 . 249 Piercing 3426 | . . . . . . . . . . . 349 . 441 . 538 726 212 . 33 . . 50 . . . . 88 371 243 . 375 . . Highest Corruption 50 | . . . . . . . . . 6 6 4 . . . 11 19 . . . . . . . . . . . 10 1 11 25 . 50 Average Corruption 8 | . . . . . . . . . 6 6 4 . . . 4 6 . . . . . . . . . . . 2 1 4 11 . 12 Corruption Purged 13 | . . . . . . . . . . . . . . . 13 . . . . . . . . . . . . . . . . . . Corruption Blocked . | . . . . . . . . . . . . . . . . . . . . . . . . . . . . . . . . . . Effects 212 | . . . . . . . . . 18 . . . . . 1 5 . . . . . . . . . . . 11 3 24 113 . 37 Message Errors 44 | . . . . . . . . . 4 . . . . . . . . . . . . . . . . . . 1 . 6 25 . 8 Matter Fused 40 | . . . . . . . . . 5 . . . . . . . . . . . . . . . . . . 5 . 5 19 . 6 Heat Flow Errors 23 | . . . . . . . . . 1 . . . . . . 1 . . . . . . . . . . . 3 1 2 11 . 4 Energy Discharges 25 | . . . . . . . . . 3 . . . . . 1 1 . . . . . . . . . . . . . 1 17 . 2 Parts Rejected 3 | . . . . . . . . . . . . . . . . . . . . . . . . . . . . . . . 1 . 2 Parts Fused 1 | . . . . . . . . . . . . . . . . . . . . . . . . . . . . . . 1 . . . Data Loss (minor) 21 | . . . . . . . . . 5 . . . . . . . . . . . . . . . . . . . 1 1 9 . 5 Data Loss (major) 12 | . . . . . . . . . . . . . . . . 1 . . . . . . . . . . . . 1 . 7 . 3 Misfires 10 | . . . . . . . . . . . . . . . . . . . . . . . . . . . . 1 . 4 5 . . Alerts 5 | . . . . . . . . . . . . . . . . . . . . . . . . . . . . . . 2 3 . . Misdirections 4 | . . . . . . . . . . . . . . . . . . . . . . . . . . . . . . . 2 . 2 Weapon Failures 24 | . . . . . . . . . . . . . . . . 2 . . . . . . . . . . . 1 . 2 14 . 5 Overload Shots . | . . . . . . . . . . . . . . . . . . . . . . . . . . . . . . . . . . Overflow Damage 8035 | . . 30 37 13 10 . 104 . 22 . 17 12 16 18 74 59 43 . 69 . . 52 . . . 70 . 615 114 320 3380 40 2920 Projectiles 4493 | . . 12 26 1 . . 16 . 22 . . 12 . . . . 6 . 6 . . 52 . . . 57 . 343 42 151 1950 40 1757 Explosions 2603 | . . 18 11 4 10 . 88 . . . . . 3 18 . . . . 63 . . . . . . 13 . . . 169 1099 . 1107 Melee 939 | . . . . 8 . . . . . . 17 . 13 . 74 59 37 . . . . . . . . . . 272 72 . 331 . 56 Knockbacks 30 | . . . . 1 . . 5 . 6 . . . 1 . . 1 . . . . . . . . 3 2 . 7 . . . . 4 Impact 3 | . . . . 1 . . . . . . . . 1 . . 1 . . . . . . . . . . . . . . . . . Kinetic 25 | . . . . . . . 4 . 6 . . . . . . . . . . . . . . . 3 2 . 6 . . . . 4 Secondary 2 | . . . . . . . 1 . . . . . . . . . . . . . . . . . . . . 1 . . . . . Self-Inflicted Damage 1367 | . . 40 16 11 . . 193 . . . . . . . . . . . . . . . . . . . . . . . 427 . 680 Shots 32 | . . 1 1 1 . . 7 . . . . . . . . . . . . . . . . . . . . . . . 10 . 12 Rammed 5 | . 2 . . 3 . . . . . . . . . . . . . . . . . . . . . . . . . . . . . Targets Rammed 19 | . 2 . . 4 . 3 3 . . . . . 1 . . 4 . . . . . . . . . . . . . . . . 2 Kicked 13 | . . . . . . 3 3 . . . . . 1 . . 4 . . . . . . . . . . . . . . . . 2 Crushed 1 | . . . . 1 . . . . . . . . . . . . . . . . . . . . . . . . . . . . . Highest Temperature 336 | . 18 165 213 177 110 328 6 . 142 8 . 20 134 . . 151 302 336 324 8 96 179 60 200 20 19 . 203 254 332 248 . 203 Average Temperature 81 | . 9 42 55 44 38 85 5 . 23 6 . 10 49 . . 16 149 120 64 5 54 68 34 73 10 10 . 30 73 94 65 . 144 Received Heat Transfer 5780 | . 132 105 57 414 423 84 266 84 171 . . . 423 . 9 339 . 63 465 . . . 81 406 9 84 . 98 129 40 671 . 1227 Effects 13 | . . . . . . . . . . . . . . . . . . . . . . . . . . . . . . 1 . . 12 Energy Bleed 3 | . . . . . . . . . . . . . . . . . . . . . . . . . . . . . . . . . 3 Interference 10 | . . . . . . . . . . . . . . . . . . . . . . . . . . . . . . 1 . . 9 Siege Activations . | . . . . . . . . . . . . . . . . . . . . . . . . . . . . . . . . . . Martial Activations . | . . . . . . . . . . . . . . . . . . . . . . . . . . . . . . . . . . Shielding Activations . | . . . . . . . . . . . . . . . . . . . . . . . . . . . . . . . . . . Robots Disrupted 2 | . . . . . . . 2 . . . . . . . . . . . . . . . . . . . . . . . . . . Combat Hostiles . | . . . . . . . . . . . . . . . . . . . . . . . . . . . . . . . . . . Robots Corrupted 18 | . . . . 1 . . 1 . . . . . 4 8 . . . . . . . . . . . 1 . 2 . . 1 . . Combat Hostiles 16 | . . . . . . . 1 . . . . . 4 7 . . . . . . . . . . . 1 . 2 . . 1 . . Parts Fried 32 | . . . . 3 . . 4 . . . . . 8 8 . . . . 1 . . . . . . 3 . 3 . . 2 . . Impact Corruptions 2 | . . . . 1 . . . . . . . . 1 . . . . . . . . . . . . . . . . . . . . Robots Melted 40 | . . . 1 . . 1 . . . . . . . . . . . 1 . . . 1 . . . . . 2 3 2 16 . 13 Combat Hostiles 39 | . . . 1 . . . . . . . . . . . . . . 1 . . . 1 . . . . . 2 3 2 16 . 13 Parts Melted 70 | . . . 5 . . 1 . . 1 . . . . . . . 1 3 . . . 3 . . . . . 2 3 4 25 . 22 Heat Transferred 35659 | 75 . 555 1369 1184 . 350 50 . 475 425 150 150 400 . . 100 700 400 200 400 . 200 50 . . . . . . 290 13787 200 14149 Parts Sabotaged . | . . . . . . . . . . . . . . . . . . . . . . . . . . . . . . . . . . Parts Stolen . | . . . . . . . . . . . . . . . . . . . . . . . . . . . . . . . . . . Parts Stripped 18 | . . . . . . . . . . . . . . . . . . . . . . . . . . . . . . 18 . . . Power Chain Reactions 6 | . . . . . . . 1 . . . . . 3 . . 2 . . . . . . . . . . . . . . . . . Alert | -11 -10 -10 -10 -8 -8 -8 -7 -7 -7 -7 -6 -6 -6 -6 -6 -6 -5 -5 -5 -5 -4 -4 -4 -4 -4 -3 -3 -3 -2 -2 -2 -1 -1 ------- Run | Yrd Mat Min Sub Mat Gar Mat Fac Low Low Zio Pro Fac Ext Cet Arc Hub Fac Upp Upp Zhi Pro Fac Upp Upp War Pro Res Tes Res Qua Frg Acc Com Maximum Alert Level 5 | . . . . 1 3 2 2 . . . . . 1 1 1 . . . . . . . . . . . . 1 1 1 5 5 5 Low Security (%) 53 | 100 100 100 . 84 4 . 39 . . . . 100 56 18 83 100 100 . . . . 100 . . . . 100 70 93 61 13 . . Level 1 18 | . . . . 15 22 . 51 . . . . . 43 81 16 . . . . . . . . . . . . 29 6 38 12 . . Level 2 8 | . . . . . 54 100 9 . . . . . . . . . . . . . . . . . . . . . . . 10 . . Level 3 2 | . . . . . 19 . . . . . . . . . . . . . . . . . . . . . . . . . 6 . . Level 4 2 | . . . . . . . . . . . . . . . . . . . . . . . . . . . . . . . 7 . 25 Level 5 9 | . . . . . . . . . . . . . . . . . . . . . . . . . . . . . . . 49 100 2 High Security 5 | . . . . . . . . . . . . . . . . . . . . . . . . . . . . . . . . . 71 Max Security . | . . . . . . . . . . . . . . . . . . . . . . . . . . . . . . . . . . Peak Influence 4612 | 10 112 109 . 225 1066 673 425 . . . . 66 374 323 243 142 135 . . . . 40 . . . . 164 344 220 308 4000 2446 4612 Initial 2400 | . . 30 . . 140 519 279 . . . . 35 20 175 106 . 23 . . . . . . . . . 150 69 193 119 135 2400 1531 Average 613 | 4 56 43 . 73 561 593 233 . . . . 17 162 251 88 72 53 . . . . 5 . . . . 139 152 158 159 1660 2396 2747 Influence Increases 18510 | 10 273 189 70 893 926 414 493 60 175 . 593 139 1188 288 199 625 379 20 240 10 . 87 90 30 319 150 274 861 373 677 4615 143 3707 Destroy 0b10 Robot/C 10200 | . 160 120 60 600 600 240 260 40 140 . 260 80 620 160 80 280 200 20 220 . . 40 80 20 200 100 40 360 200 340 2240 40 2400 Destroy 0b10 Robot/NC 560 | 10 10 25 . 40 . 40 40 . . . 10 . 40 10 20 80 10 . . 10 . . . . 5 10 10 35 15 . 55 5 80 Destroy Leader 1500 | . 44 20 10 132 30 72 54 20 20 . 50 20 42 . . 100 40 . 20 . . 10 10 10 . 10 22 44 80 50 270 10 310 Allied During Kill 995 | . . 1 . . . . . . . . 273 34 278 118 68 101 27 . . . . . . . 39 . 23 4 . . . . 29 Successful Hack 303 | . 24 . . 37 14 14 33 . . . . . . . . . . . . . . 12 . . . . 8 96 6 26 26 7 . Select Force Hacks 30 | . 30 . . . . . . . . . . . . . . . . . . . . . . . . . . . . . . . . Disable Machine 945 | . . . . 30 15 . 60 . . . . . 60 . 30 15 30 . . . . . . . . . 15 135 15 90 345 15 90 Anti-Garrison Action 300 | . . . . . 150 . . . . . . . . . . . . . . . . . . . . . . . . . 150 . . Destroy Structure 2777 | . 5 23 . 24 87 48 46 . . . . 5 58 . 1 34 72 . . . . 10 . . . . 6 82 57 171 1304 66 678 Advance Influence 150 | . . . . . . . . . . . . . . . . . . . . . . . . . . . 150 . . . . . . Partial Spotted 30 | . . . . . . . . . . . . . 30 . . . . . . . . . . . . . . . . . . . . Lose Combat Pursuer 720 | . . . . 30 30 . . . 15 . . . 60 . . 15 . . . . . 15 . . 75 30 . 105 . . 225 . 120 Influence Decreases 13930 | 10 196 257 79 677 76 865 886 282 175 . 537 153 917 336 464 576 409 39 240 10 . 87 90 30 194 275 150 641 505 649 855 1750 1520 Entered New Map 4459 | . . 47 5 . 76 547 336 83 . . . 21 22 138 159 . 26 8 . . . . . . . 125 . 55 151 93 105 1600 862 Time Decay 7620 | 10 196 170 74 527 . 318 350 199 155 . 477 111 475 198 305 366 343 21 190 10 . 87 90 30 134 140 150 556 334 546 710 150 198 Lost Part 651 | . . 20 . . . . 50 . 20 . . 1 20 . . 60 . 10 50 . . . . . . . . 10 20 10 40 . 340 Lost Ally 900 | . . 20 . . . . . . . . 60 20 400 . . 150 40 . . . . . . . 60 10 . 20 . . . . 120 Purge Threat 300 | . . . . 150 . . 150 . . . . . . . . . . . . . . . . . . . . . . . . . . Squads Dispatched 98 | . 2 1 . 2 . 1 2 . . . . . 1 . . 5 3 . 1 . . 1 . . . . 1 3 4 5 26 3 37 Investigation 6 | . 2 . . . . . . . . . . . . . . . 1 . 1 . . . . . . . . . 1 1 . . . Extermination 26 | . . . . . . . 1 . . . . . . . . 1 1 . . . . 1 . . . . 1 3 3 4 8 1 2 Reinforcement 12 | . . . . 1 . . 1 . . . . . 1 . . 4 1 . . . . . . . . . . . . . 3 1 . Assault 53 | . . 1 . . . 1 . . . . . . . . . . . . . . . . . . . . . . . . 15 1 35 Garrison 1 | . . . . 1 . . . . . . . . . . . . . . . . . . . . . . . . . . . . . Intercept . | . . . . . . . . . . . . . . . . . . . . . . . . . . . . . . . . . . Searches Triggered . | . . . . . . . . . . . . . . . . . . . . . . . . . . . . . . . . . . Construction Impeded 4 | . . . . . . . 1 . . . . . 1 . . 2 . . . . . . . . . . . . . . . . . Haulers Reinforced 2 | . . . . . . . . . . . . . . . . 2 . . . . . . . . . . . . . . . . . Active Scanning Responses . | . . . . . . . . . . . . . . . . . . . . . . . . . . . . . . . . . . Cargo Convoy Interrupts . | . . . . . . . . . . . . . . . . . . . . . . . . . . . . . . . . . . Stealth | -11 -10 -10 -10 -8 -8 -8 -7 -7 -7 -7 -6 -6 -6 -6 -6 -6 -5 -5 -5 -5 -4 -4 -4 -4 -4 -3 -3 -3 -2 -2 -2 -1 -1 --------- Run | Yrd Mat Min Sub Mat Gar Mat Fac Low Low Zio Pro Fac Ext Cet Arc Hub Fac Upp Upp Zhi Pro Fac Upp Upp War Pro Res Tes Res Qua Frg Acc Com Distress Signals 19 | . 1 . . 5 . 1 . . . . . . 4 . . 3 . . . . . 1 . . 1 1 . 1 . . . . 1 Communications Jammed 120 | . . . . . . . . . . . . . . . . . . . . . . . . . 30 1 . 12 5 29 42 . 1 Distress Signals 119 | . . . . . . . . . . . . . . . . . . . . . . . . . 30 . . 12 5 29 42 . 1 Times Spotted 725 | . 12 7 14 44 32 17 16 2 8 . 9 4 37 10 15 22 11 1 10 . . 5 4 1 29 7 1 31 11 26 133 2 204 Peak Tracking Total 26 | . 6 4 3 6 4 6 4 1 4 . 3 3 6 5 1 7 2 1 4 . . 2 4 1 11 6 1 6 3 5 11 1 26 Tactical Retreats 35 | . . . . 2 2 . . . 1 . . . 4 . . 1 . . . . . 1 . . 1 1 . 7 . . 8 . 7 Traps | -11 -10 -10 -10 -8 -8 -8 -7 -7 -7 -7 -6 -6 -6 -6 -6 -6 -5 -5 -5 -5 -4 -4 -4 -4 -4 -3 -3 -3 -2 -2 -2 -1 -1 ------- Run | Yrd Mat Min Sub Mat Gar Mat Fac Low Low Zio Pro Fac Ext Cet Arc Hub Fac Upp Upp Zhi Pro Fac Upp Upp War Pro Res Tes Res Qua Frg Acc Com Traps Triggered 26 | . 1 . 3 . 1 . . . . . . 1 4 . . . 2 . . . . . . . . . . 2 1 2 9 . . Indirectly . | . . . . . . . . . . . . . . . . . . . . . . . . . . . . . . . . . . Trap Hack Attempts . | . . . . . . . . . . . . . . . . . . . . . . . . . . . . . . . . . . Triggered . | . . . . . . . . . . . . . . . . . . . . . . . . . . . . . . . . . . Disarmed . | . . . . . . . . . . . . . . . . . . . . . . . . . . . . . . . . . . Reprogrammed . | . . . . . . . . . . . . . . . . . . . . . . . . . . . . . . . . . . Reused . | . . . . . . . . . . . . . . . . . . . . . . . . . . . . . . . . . . Traps Extracted . | . . . . . . . . . . . . . . . . . . . . . . . . . . . . . . . . . . Installed . | . . . . . . . . . . . . . . . . . . . . . . . . . . . . . . . . . . Triggered . | . . . . . . . . . . . . . . . . . . . . . . . . . . . . . . . . . . Machines | -11 -10 -10 -10 -8 -8 -8 -7 -7 -7 -7 -6 -6 -6 -6 -6 -6 -5 -5 -5 -5 -4 -4 -4 -4 -4 -3 -3 -3 -2 -2 -2 -1 -1 ---------- Run | Yrd Mat Min Sub Mat Gar Mat Fac Low Low Zio Pro Fac Ext Cet Arc Hub Fac Upp Upp Zhi Pro Fac Upp Upp War Pro Res Tes Res Qua Frg Acc Com Machines Disabled 87 | . . . 1 2 1 . 4 . . . . . 7 . 2 1 2 . 1 . . . 1 . 1 1 1 9 1 6 39 1 6 Max in Single Turn 3 | . . . 1 1 1 . 3 . . . . . 2 . . . 1 . 1 . . . 1 . 1 1 1 1 1 1 2 1 2 Garrison Access 3 | . . . . . . . . . . . . . . . . 1 . . . . . . . . . . . 1 . . 1 . . Network Hub 2 | . . . . . . . . . . . . . . . . 2 . . . . . . . . . . . . . . . . . Energy Cycler 2 | . . . . . . . . . . . . . 2 . . . . . . . . . . . . . . . . . . . . Machines Repaired . | . . . . . . . . . . . . . . . . . . . . . . . . . . . . . . . . . . Machines Dismantled . | . . . . . . . . . . . . . . . . . . . . . . . . . . . . . . . . . . Machines Sabotaged . | . . . . . . . . . . . . . . . . . . . . . . . . . . . . . . . . . . Overloaded Fab Kills . | . . . . . . . . . . . . . . . . . . . . . . . . . . . . . . . . . . Hacking | -11 -10 -10 -10 -8 -8 -8 -7 -7 -7 -7 -6 -6 -6 -6 -6 -6 -5 -5 -5 -5 -4 -4 -4 -4 -4 -3 -3 -3 -2 -2 -2 -1 -1 --------- Run | Yrd Mat Min Sub Mat Gar Mat Fac Low Low Zio Pro Fac Ext Cet Arc Hub Fac Upp Upp Zhi Pro Fac Upp Upp War Pro Res Tes Res Qua Frg Acc Com Machines Accessed 63 | . 2 . 2 9 1 3 7 . . . 1 1 . . 1 1 1 2 1 4 . 3 2 1 2 . 2 8 3 2 3 1 . Terminals 24 | . 1 . . 8 1 3 4 . . . 1 1 . . . . . . 1 . . . . . . . . 2 . . 1 1 . Fabricators 4 | . . . . . . . 2 . . . . . . . . . . . . . . 1 . . . . . 1 . . . . . Repair Stations 5 | . . . . . . . . . . . . . . . . . 1 . . . . 1 . . . . 1 2 . . . . . Recycling Units 5 | . 1 . . . . . . . . . . . . . . . . . . . . 1 . . . . 1 . 2 . . . . Scanalyzers 6 | . . . . . . . . . . . . . . . . . . . . . . . . . . . . 2 1 2 1 . . Garrison Access 5 | . . . . 1 . . 1 . . . . . . . . 1 . . . . . . . . . . . 1 . . 1 . . Total Hacks 182 | . 14 . 4 31 5 6 14 . . . 1 1 . . 1 3 2 2 7 17 . 10 2 1 7 . 7 25 8 5 8 1 . Successful 98 | . 6 . 4 17 1 1 5 . . . 1 1 . . 1 1 1 2 7 17 . 1 2 1 7 . 1 9 5 3 3 1 . Failed 84 | . 8 . . 14 4 5 9 . . . . . . . . 2 1 . . . . 9 . . . . 6 16 3 2 5 . . Catastrophic 12 | . . . . 2 . 1 2 . . . . . . . . . . . . . . 2 . . . . 1 3 . . 1 . . Database Lockouts . | . . . . . . . . . . . . . . . . . . . . . . . . . . . . . . . . . . Manual 171 | . 10 . . 13 . 3 4 . . 3 . 3 10 . . 16 11 . . . . 9 . . . . 3 18 9 36 7 . 16 Terminals 76 | . 9 . . 28 5 6 7 . . . 1 1 . . . . . . 7 . . . . . . . . 10 . . 1 1 . Fabricators 9 | . . . . . . . 5 . . . . . . . . . . . . . . 2 . . . . . 2 . . . . . Repair Stations 19 | . . . . . . . . . . . . . . . . . 2 . . . . 6 . . . . 4 7 . . . . . Recycling Units 16 | . 5 . . . . . . . . . . . . . . . . . . . . 2 . . . . 3 . 6 . . . . Scanalyzers 14 | . . . . . . . . . . . . . . . . . . . . . . . . . . . . 3 2 5 4 . . Garrison Access 14 | . . . . 3 . . 2 . . . . . . . . 3 . . . . . . . . . . . 3 . . 3 . . Terminal Hacks 68 | . 4 . 4 11 1 1 3 . . . 1 1 . . 1 . . 2 7 17 . . 2 1 7 . . 3 . . 1 1 . Record 18 | . . . 3 . . . . . . . 1 . . . 1 . . . 7 5 . . 1 . . . . . . . . . . Part Schematic 6 | . . . . . . . . . . . . . . . . . . . . 4 . . . . . . . 2 . . . . . Robot Analysis 7 | . 3 . . . . . . . . . . . . . . . . . . 4 . . . . . . . . . . . . . Prototype ID Bank 14 | . . . . 4 . . . . . . . . . . . . . . . 4 . . . . 6 . . . . . . . . Open Door 8 | . . . . . . . . . . . . 1 . . . . . 2 . . . . 1 1 1 . . 1 . . . 1 . Branch Access Points 1 | . . . . 1 . . . . . . . . . . . . . . . . . . . . . . . . . . . . . Emergency Access Points 1 | . . . . . 1 . . . . . . . . . . . . . . . . . . . . . . . . . . . . Unreport Threat 2 | . . . . 1 . . 1 . . . . . . . . . . . . . . . . . . . . . . . . . . Locate Traps 2 | . . . . 2 . . . . . . . . . . . . . . . . . . . . . . . . . . . . . Hauler Manifests 3 | . . . . 1 . 1 1 . . . . . . . . . . . . . . . . . . . . . . . . . . Registered Components 2 | . 1 . . 1 . . . . . . . . . . . . . . . . . . . . . . . . . . . . . Registered Prototypes 1 | . . . . 1 . . . . . . . . . . . . . . . . . . . . . . . . . . . . . Zone Layout 1 | . . . . . . . 1 . . . . . . . . . . . . . . . . . . . . . . . . . . Proto ID Catalog 2 | . . . 1 . . . . . . . . . . . . . . . . . . . . . . . . . . . 1 . . Fabricator Hacks 1 | . . . . . . . 1 . . . . . . . . . . . . . . . . . . . . . . . . . . Network Status 1 | . . . . . . . 1 . . . . . . . . . . . . . . . . . . . . . . . . . . Repair Station Hacks 6 | . . . . . . . . . . . . . . . . . . . . . . 1 . . . . 1 4 . . . . . Scan Component 4 | . . . . . . . . . . . . . . . . . . . . . . 1 . . . . 1 2 . . . . . Repair 2 | . . . . . . . . . . . . . . . . . . . . . . . . . . . . 2 . . . . . Recycling Unit Hacks 3 | . 1 . . . . . . . . . . . . . . . . . . . . . . . . . . . 2 . . . . Retrieve Components 3 | . 1 . . . . . . . . . . . . . . . . . . . . . . . . . . . 2 . . . . Scanalyzer 3 | . . . . . . . . . . . . . . . . . . . . . . . . . . . . . 1 1 1 . . Insert Component 3 | . . . . . . . . . . . . . . . . . . . . . . . . . . . . . 1 1 1 . . Garrison Access Hacks 3 | . . . . 1 . . . . . . . . . . . 1 . . . . . . . . . . . 1 . . . . . Unlock Access 1 | . . . . 1 . . . . . . . . . . . . . . . . . . . . . . . . . . . . . Seal Access 2 | . . . . . . . . . . . . . . . . 1 . . . . . . . . . . . 1 . . . . . Unauthorized Hacks 14 | . 1 . . 5 . . 1 . . . . . . . . . 1 . . . . . . . . . . 1 2 2 1 . . Terminals 5 | . . . . 5 . . . . . . . . . . . . . . . . . . . . . . . . . . . . . Skim 5 | . . . . 5 . . . . . . . . . . . . . . . . . . . . . . . . . . . . . Fabricators 1 | . . . . . . . 1 . . . . . . . . . . . . . . . . . . . . . . . . . . Haulers 1 | . . . . . . . 1 . . . . . . . . . . . . . . . . . . . . . . . . . . Repair Stations 1 | . . . . . . . . . . . . . . . . . 1 . . . . . . . . . . . . . . . . Patch 1 | . . . . . . . . . . . . . . . . . 1 . . . . . . . . . . . . . . . . Recycling Units 3 | . 1 . . . . . . . . . . . . . . . . . . . . . . . . . . . 2 . . . . Recyclers 1 | . . . . . . . . . . . . . . . . . . . . . . . . . . . . . 1 . . . . Mask 1 | . . . . . . . . . . . . . . . . . . . . . . . . . . . . . 1 . . . . Tunnel 1 | . 1 . . . . . . . . . . . . . . . . . . . . . . . . . . . . . . . . Scanalyzers 4 | . . . . . . . . . . . . . . . . . . . . . . . . . . . . 1 . 2 1 . . Researchers 4 | . . . . . . . . . . . . . . . . . . . . . . . . . . . . 1 . 2 1 . . Garrison Access . | . . . . . . . . . . . . . . . . . . . . . . . . . . . . . . . . . . Data Cores Recovered 1 | . . . . . . . 1 . . . . . . . . . . . . . . . . . . . . . . . . . . Used . | . . . . . . . . . . . . . . . . . . . . . . . . . . . . . . . . . . Hacking Detections 38 | . 1 . . 9 1 3 7 . . . . 1 . . . . . . 1 . . 3 . . . . 2 6 2 1 1 . . Full Trace Events 3 | . 1 . . . 1 . . . . . . . . . . . . . 1 . . . . . . . . . . . . . . Feedback Events . | . . . . . . . . . . . . . . . . . . . . . . . . . . . . . . . . . . Feedback Blocked . | . . . . . . . . . . . . . . . . . . . . . . . . . . . . . . . . . . Robot Schematics Acquired 4 | . . . . . . . . . . 2 . . . . . . . . . . . . . . . . . 2 . . . . . Robots Built . | . . . . . . . . . . . . . . . . . . . . . . . . . . . . . . . . . . Authchips . | . . . . . . . . . . . . . . . . . . . . . . . . . . . . . . . . . . Time . | . . . . . . . . . . . . . . . . . . . . . . . . . . . . . . . . . . Total Robot Build Rating . | . . . . . . . . . . . . . . . . . . . . . . . . . . . . . . . . . . Part Schematics Acquired 112 | . . . . . . . . . . 15 . . 9 . . . . . . 4 . . . . . . . 19 . 50 . . 15 Parts Built . | . . . . . . . . . . . . . . . . . . . . . . . . . . . . . . . . . . Authchips . | . . . . . . . . . . . . . . . . . . . . . . . . . . . . . . . . . . Time . | . . . . . . . . . . . . . . . . . . . . . . . . . . . . . . . . . . Total Part Build Rating . | . . . . . . . . . . . . . . . . . . . . . . . . . . . . . . . . . . Parts Repaired 2 | . . . . . . . . . . . . . . . . . . . . . . . . . . . . 2 . . . . . Time 90 | . . . . . . . . . . . . . . . . . . . . . . . . . . . . 90 . . . . . Parts Recycled . | . . . . . . . . . . . . . . . . . . . . . . . . . . . . . . . . . . Recycled Matter . | . . . . . . . . . . . . . . . . . . . . . . . . . . . . . . . . . . Retrieved Matter . | . . . . . . . . . . . . . . . . . . . . . . . . . . . . . . . . . . Retrieved Components 3 | . 2 . . . . . . . . . . . . . . . . . . . . . . . . . . . 1 . . . . Parts Scanalyzed . | . . . . . . . . . . . . . . . . . . . . . . . . . . . . . . . . . . Part Schematics Acquired . | . . . . . . . . . . . . . . . . . . . . . . . . . . . . . . . . . . Parts Damaged . | . . . . . . . . . . . . . . . . . . . . . . . . . . . . . . . . . . Bothacking | -11 -10 -10 -10 -8 -8 -8 -7 -7 -7 -7 -6 -6 -6 -6 -6 -6 -5 -5 -5 -5 -4 -4 -4 -4 -4 -3 -3 -3 -2 -2 -2 -1 -1 ------------ Run | Yrd Mat Min Sub Mat Gar Mat Fac Low Low Zio Pro Fac Ext Cet Arc Hub Fac Upp Upp Zhi Pro Fac Upp Upp War Pro Res Tes Res Qua Frg Acc Com Used RIF Installer . | . . . . . . . . . . . . . . . . . . . . . . . . . . . . . . . . . . Robots Hacked 2 | . . . . . . . . . . . . . . . 2 . . . . . . . . . . . . . . . . . . Non-combat 2 | . . . . . . . . . . . . . . . 2 . . . . . . . . . . . . . . . . . . Combat . | . . . . . . . . . . . . . . . . . . . . . . . . . . . . . . . . . . Robot Hacks Applied 2 | . . . . . . . . . . . . . . . 2 . . . . . . . . . . . . . . . . . . parse_system 1 | . . . . . . . . . . . . . . . 1 . . . . . . . . . . . . . . . . . . check_alert 1 | . . . . . . . . . . . . . . . 1 . . . . . . . . . . . . . . . . . . Relay Couplers Released 2 | . . . . . . . . . . . . . . . . . . . . . . . . . . . . . . . 2 . . Machine Destruction 2 | . . . . . . . . . . . . . . . . . . . . . . . . . . . . . . . 2 . . Fabnet Peak Effective % . | . . . . . . . . . . . . . . . . . . . . . . . . . . . . . . . . . . Robots Rewired 30 | . . . . . . . . . . . . . 25 . . . . . . . . . . . 5 . . . . . . . . Allies Hacked . | . . . . . . . . . . . . . . . . . . . . . . . . . . . . . . . . . . Hacks Repelled . | . . . . . . . . . . . . . . . . . . . . . . . . . . . . . . . . . . Allies | -11 -10 -10 -10 -8 -8 -8 -7 -7 -7 -7 -6 -6 -6 -6 -6 -6 -5 -5 -5 -5 -4 -4 -4 -4 -4 -3 -3 -3 -2 -2 -2 -1 -1 -------- Run | Yrd Mat Min Sub Mat Gar Mat Fac Low Low Zio Pro Fac Ext Cet Arc Hub Fac Upp Upp Zhi Pro Fac Upp Upp War Pro Res Tes Res Qua Frg Acc Com Total Allies 60 | . . 1 . . . . . . . 11 . 1 27 . . 1 2 . . . . 1 . . 5 . 3 . 1 . . . 7 Largest Group 11 | . . 1 . . . . . . . 11 11 6 10 8 8 8 2 . . . . 1 . . 5 1 3 3 1 . . . 1 Highest-Rated Group 483 | . . 31 . . . . . . . 483 483 212 312 225 225 225 170 . . . . 28 . . 264 61 288 288 28 . . . 14 Highest-Rated Ally 96 | . . 31 . . . . . . . 96 96 40 39 39 39 39 85 . . . . 28 . . 64 61 96 96 28 . . . 14 Zionite Dispatches 6 | . . . . . . . . . . . . 1 . . . 1 1 . . . . 1 . . . . 1 . 1 . . . . Heavy 1 | . . . . . . . . . . . . . . . . . 1 . . . . . . . . . . . . . . . . Light 1 | . . . . . . . . . . . . . . . . . . . . . . . . . . . 1 . . . . . . Explosive Resupply 2 | . . . . . . . . . . . . . . . . . . . . . . 1 . . . . . . 1 . . . . Melee Resupply 1 | . . . . . . . . . . . . 1 . . . . . . . . . . . . . . . . . . . . . Infowar Resupply 1 | . . . . . . . . . . . . . . . . 1 . . . . . . . . . . . . . . . . . Initial Warlord ECA Mod 16 | . . . . . . 4 3 3 3 3 . . . . . . . . . . . . . . . . . . . . . . . Total Orders 16 | . . . . . . . . . . . . 1 . 5 . 3 . . . . . 2 . . 3 . . . 2 . . . . STAY 8 | . . . . . . . . . . . . . . 2 . 2 . . . . . 1 . . 2 . . . 1 . . . . FOLLOW 4 | . . . . . . . . . . . . . . 3 . . . . . . . . . . 1 . . . . . . . . DROP 4 | . . . . . . . . . . . . 1 . . . 1 . . . . . 1 . . . . . . 1 . . . . Ally Attacks 470 | . . 3 . . . . . . . . 88 31 201 . 19 48 23 . . . . . . . 23 . 11 12 . . . . 11 Total Damage 10587 | . . 44 . . . . . . . . 2078 456 3299 . 472 1054 1207 . . . . . . . 939 . 401 349 . . . . 288 Kills 82 | . . . . . . . . . . . 15 5 29 . 4 10 7 . . . . . . . 4 . 2 3 . . . . 3 Allies Corrupted . | . . . . . . . . . . . . . . . . . . . . . . . . . . . . . . . . . . Allies Melted 3 | . . . . . . . . . . . . . 2 . . . . . . . . . . . 1 . . . . . . . . Intel | -11 -10 -10 -10 -8 -8 -8 -7 -7 -7 -7 -6 -6 -6 -6 -6 -6 -5 -5 -5 -5 -4 -4 -4 -4 -4 -3 -3 -3 -2 -2 -2 -1 -1 ------- Run | Yrd Mat Min Sub Mat Gar Mat Fac Low Low Zio Pro Fac Ext Cet Arc Hub Fac Upp Upp Zhi Pro Fac Upp Upp War Pro Res Tes Res Qua Frg Acc Com Active Infowar (turns) 41006 | 13 351 278 1824 1483 732 248 647 1771 926 3791 1676 451 1724 412 976 919 819 1758 2231 474 1100 663 1743 1638 1460 1904 302 1616 741 1568 3194 309 1264 Optics 24757 | . . . . . . . 141 1771 926 3791 1676 451 1724 412 976 919 819 1758 1806 . . . . . . . . 824 741 1568 3193 309 952 IFF 13347 | . . . . . . . . . . . . . . . . . . . . . 1100 628 1719 1594 1266 1847 279 1395 565 1247 1394 309 4 Terrain 1775 | . . . . . . . . . . . . . . . . . 15 . . . . . . . . . . 334 583 237 606 . . Seismic 20201 | 13 351 278 1824 1483 732 248 506 1695 825 3643 1526 444 297 . . 377 758 1733 2073 473 . 663 2 . 257 . . . . . . . . Decoding 779 | . . . . . . . . . . . . . . . . . 779 . . . . . . . . . . . . . . . . Cloaking 9819 | . . . . . . . . . . . . . . . . . . . . . . . . . 969 1882 302 1342 722 1176 2317 309 800 Jamming 18587 | . . . . . . . . . . . . . . . . . . 1758 2231 474 1100 663 1743 1638 1460 1904 302 434 393 1337 2395 309 446 Robot Analysis Total 7 | . 3 . . . . . . . . . . . . . . . . . . 4 . . . . . . . . . . . . . Derelict Logs Recovered 16 | . . . 1 . . . . 1 2 1 1 . . . . . . 2 3 . 2 . 1 2 . . . . . . . . . Drone Launches 1 | . . . . . . . . . . . . . 1 . . . . . . . . . . . . . . . . . . . . Drone Recoveries . | . . . . . . . . . . . . . . . . . . . . . . . . . . . . . . . . . . Decoded 0b10 Intel 44 | . . . . . . . . . . . . . . . . . 44 . . . . . . . . . . . . . . . . Items 44 | . . . . . . . . . . . . . . . . . 44 . . . . . . . . . . . . . . . . Zionite Intel Received 26 | . . . . . . . . . . . . . 2 . . 3 . . . . . 1 . . . . . 4 1 10 1 . 4 Main Access 1 | . . . . . . . . . . . . . . . . . . . . . . . . . . . . . . . 1 . . Branch Access 3 | . . . . . . . . . . . . . 1 . . . . . . . . 1 . . . . . . 1 . . . . Emergency Access 3 | . . . . . . . . . . . . . . . . 1 . . . . . . . . . . . 1 . 1 . . . Guard Positions 2 | . . . . . . . . . . . . . . . . 1 . . . . . . . . . . . . . . . . 1 Component Stockpiles 3 | . . . . . . . . . . . . . . . . . . . . . . . . . . . . 1 . 1 . . 1 Prototype Stockpiles 1 | . . . . . . . . . . . . . . . . . . . . . . . . . . . . . . 1 . . . Component Schematics 5 | . . . . . . . . . . . . . . . . . . . . . . . . . . . . 1 . 3 . . 1 Prototype Schematics 2 | . . . . . . . . . . . . . 1 . . . . . . . . . . . . . . . . 1 . . . Active Terminals 3 | . . . . . . . . . . . . . . . . 1 . . . . . . . . . . . 1 . 1 . . . Active Garrisons 1 | . . . . . . . . . . . . . . . . . . . . . . . . . . . . . . 1 . . . Depthwide Sectors/0 1 | . . . . . . . . . . . . . . . . . . . . . . . . . . . . . . . . . 1 Depthwide Sectors/-1 1 | . . . . . . . . . . . . . . . . . . . . . . . . . . . . . . 1 . . . Exploration | -11 -10 -10 -10 -8 -8 -8 -7 -7 -7 -7 -6 -6 -6 -6 -6 -6 -5 -5 -5 -5 -4 -4 -4 -4 -4 -3 -3 -3 -2 -2 -2 -1 -1 ------------- Run | Yrd Mat Min Sub Mat Gar Mat Fac Low Low Zio Pro Fac Ext Cet Arc Hub Fac Upp Upp Zhi Pro Fac Upp Upp War Pro Res Tes Res Qua Frg Acc Com Turns Passed 44610 | 29 439 390 3199 2157 1248 712 786 1771 926 3791 1676 451 1724 412 976 919 819 1758 2231 474 1100 663 1743 1638 1460 1904 302 1632 741 1568 3194 309 1468 Spaces Moved 26735 | 16 217 190 1591 1143 549 300 493 804 580 2379 1208 324 981 240 398 476 595 1061 1355 365 859 556 1327 1117 1095 1150 259 1167 483 1039 1604 166 648 Core 16 | . . . . . . . . . . . . . . . 16 . . . . . . . . . . . . . . . . . . Treads 3704 | . 80 190 1591 1143 549 151 . . . . . . . . . . . . . . . . . . . . . . . . . . . Legs 23015 | 16 137 . . . . 149 493 804 580 2379 1208 324 981 240 382 476 595 1061 1355 365 859 556 1327 1117 1095 1150 259 1167 483 1039 1604 166 648 Wheels . | . . . . . . . . . . . . . . . . . . . . . . . . . . . . . . . . . . Hover . | . . . . . . . . . . . . . . . . . . . . . . . . . . . . . . . . . . Flight . | . . . . . . . . . . . . . . . . . . . . . . . . . . . . . . . . . . Fastest Speed 80 | 120 120 160 160 160 160 160 122 125 125 125 125 124 114 114 114 114 110 112 110 110 110 110 110 110 108 104 104 104 110 105 105 110 80 Average Speed 124 | 120 135 160 170 160 169 177 122 162 126 125 125 124 121 114 175 114 112 112 113 112 110 110 110 110 109 104 104 108 114 113 116 110 109 Slowest Speed 1650 | 120 190 160 240 160 240 265 125 195 195 125 125 124 190 114 1650 125 116 112 116 116 110 110 110 110 110 108 104 112 180 180 220 110 220 Overloaded Moves . | . . . . . . . . . . . . . . . . . . . . . . . . . . . . . . . . . . Propulsion Burnouts . | . . . . . . . . . . . . . . . . . . . . . . . . . . . . . . . . . . Robots Hopped . | . . . . . . . . . . . . . . . . . . . . . . . . . . . . . . . . . . Potential Cave-ins 34 | . . . . . . . . . . . . . . . . . . . . . . . . . 3 . . 2 . . 27 . 2 Cave-ins Triggered 5 | . . . . . . . . . . . . . . . . . . . . . . . . . 1 . . . . . . . 4 Teleports 9 | . . . . . . . . . . . . . . . . . . . . . . . . . . . . . . . 6 3 . Exploration Rate (%) 57 | 2 36 27 51 84 73 22 18 79 66 91 98 13 90 75 94 30 16 96 94 62 80 11 94 88 90 84 7 92 23 91 44 7 26 Regions Visited 33 Branch Regions 22 Pre-discovered Areas 17 | . 1 . 1 2 . . . 1 . 2 . . . . . . . . . 3 1 . 1 1 . . . . . 2 . . 2 Known Exits Taken 15 | . . . . 1 . . 1 1 . . 1 1 1 . . 1 1 1 . . 1 1 . 1 . . 1 . 1 . 1 . . Unknown Exits Taken 17 | 1 1 1 1 . . 1 . . 1 1 . . . 1 1 . . . 1 1 . . 1 . 1 1 . 1 . 1 . 1 . Scrap Searched 45 | . . . 14 . . . . 3 2 4 2 . . . . . . 3 2 . 1 . 4 5 . 5 . . . . . . . Spaces Dug 496 | . . . 20 . . . 12 . 5 . 1 2 . . . 1 5 20 8 . 4 3 19 17 . 51 1 28 12 13 150 7 117 Terrain Destroyed 1591 | . 5 27 37 24 2 63 62 1 19 . 1 5 5 . . 35 9 21 46 . 6 5 30 18 1 85 2 39 20 56 438 15 514 Melee 122 | . . . . . . . . . . . 1 2 . . . 1 5 16 8 . 4 3 4 14 . 11 1 17 5 7 19 3 1 Projectile 476 | . . . 27 4 . 6 11 1 9 . . 3 3 . . 19 4 5 2 . 2 2 1 4 1 1 1 22 15 21 184 12 116 AOE 992 | . 5 27 10 20 2 57 51 . 10 . . . 2 . . 15 . . 36 . . . 25 . . 72 . . . 28 235 . 397 Terrain Rammed . | . . . . . . . . . . . . . . . . . . . . . . . . . . . . . . . . . . Walls Destroyed . | . . . . . . . . . . . . . . . . . . . . . . . . . . . . . . . . . . Machines Disabled . | . . . . . . . . . . . . . . . . . . . . . . . . . . . . . . . . . . Actions | -11 -10 -10 -10 -8 -8 -8 -7 -7 -7 -7 -6 -6 -6 -6 -6 -6 -5 -5 -5 -5 -4 -4 -4 -4 -4 -3 -3 -3 -2 -2 -2 -1 -1 --------- Run | Yrd Mat Min Sub Mat Gar Mat Fac Low Low Zio Pro Fac Ext Cet Arc Hub Fac Upp Upp Zhi Pro Fac Upp Upp War Pro Res Tes Res Qua Frg Acc Com Total 35946 | 19 315 234 1829 1368 767 422 615 1244 731 3173 1362 365 1448 360 651 757 701 1583 2009 421 1004 590 1596 1495 1342 1811 281 1419 618 1401 2616 278 1121 Wait 5602 | . 44 . 78 50 73 42 24 404 86 741 86 10 172 97 223 186 5 485 592 . 135 13 253 349 138 606 2 47 36 180 257 98 90 Move 26703 | 15 216 189 1590 1143 547 299 492 803 579 2378 1207 323 980 239 397 476 594 1060 1354 364 858 555 1326 1116 1094 1149 258 1166 482 1038 1603 165 648 Hop . | . . . . . . . . . . . . . . . . . . . . . . . . . . . . . . . . . . Pick Up 303 | . 6 4 13 24 10 3 7 5 7 9 15 6 4 4 2 8 11 2 4 13 1 3 2 . 4 3 3 12 11 16 68 1 22 Fast Attach 177 | 1 3 1 1 14 1 4 2 1 2 2 4 4 4 2 6 2 8 . 5 4 . . . . 13 1 2 16 . 15 38 . 21 Attach 173 | . 1 1 6 4 . . 15 2 9 3 1 3 2 . . 5 7 2 6 1 . 2 . . . 1 2 6 7 19 31 1 36 Detach 115 | . 1 . . 2 . 1 10 1 3 1 . . 1 . . 1 7 . 4 2 . . . . 1 1 . 6 3 17 31 1 21 Swap 453 | . 7 5 24 30 42 18 10 8 4 3 13 2 15 4 4 12 18 5 10 4 1 4 4 5 7 12 4 23 10 16 119 . 10 Drop 397 | . 8 . 13 35 14 7 3 4 7 10 21 8 9 6 6 6 16 . 4 16 1 1 2 2 19 4 3 24 5 25 100 . 18 Fire 1408 | 3 27 34 104 62 78 45 49 16 34 26 7 6 23 8 . 44 23 13 20 16 2 6 3 4 23 20 3 78 51 62 272 9 237 Melee 323 | . . . . . . . . . . . 8 3 24 . 13 14 11 16 10 1 6 6 6 19 . 14 4 41 13 13 92 3 6 Ram . | . . . . . . . . . . . . . . . . . . . . . . . . . . . . . . . . . . Kick 12 | . . . . . . 3 3 . . . . . 1 . . 3 . . . . . . . . . . . . . . . . 2 Crush 6 | . 2 . . 4 . . . . . . . . . . . . . . . . . . . . . . . . . . . . . Escape Stasis 35 | . . . . . 2 . . . . . . . 17 . . . 1 . . . . . . . . . . . . . 5 . 10 Rewire 239 | . . . . . . . . . . . . . 196 . . . . . . . . . . . 43 . . . . . . . . Trap . | . . . . . . . . . . . . . . . . . . . . . . . . . . . . . . . . . . Miscellaneous . | . . . . . . . . . . . . . . . . . . . . . . . . . . . . . . . . . . Route ------- -11/Scrapyard -10/Materials -10/Mines (discovered 2 exits: [*Mat] / *Sub) -10/Subcaves -8/Materials (discovered 4 exits: *Fac x3 / Gar) -8/Garrison (discovered 2 exits: *Mat x2) -8/Materials -7/Factory (discovered 3 exits: Fac / *Sto / *Low) -7/Lower Caves -7/Lower Caves (discovered 2 exits: *Fac / *Zio) -7/Zion -6/Proximity Caves -6/Factory (discovered 3 exits: Fac / Low / *Ext) -6/Extension (discovered 3 exits: *Fac x2 / *Cet) -6/Cetus (discovered 3 exits: *Fac x2 / *Arc) -6/Archives (discovered 3 exits: *Fac / *Hub x2) -6/Hub_04(d) (discovered 2 exits: *Fac x2) -5/Factory -5/Upper Caves -5/Upper Caves (discovered 2 exits: *Fac / *Zhi) -5/Zhirov -4/Proximity Caves -4/Factory (discovered 3 exits: *Res / *Upp x2) -4/Upper Caves -4/Upper Caves (discovered 2 exits: *Res / *War) -4/Warlord -3/Proximity Caves -3/Research -3/Testing -2/Research (discovered 3 exits: *Acc / *Qua x2) -2/Quarantine (discovered 3 exits: *Acc / [*Sec] / *Frg) -2/Protoforge -1/Access -1/Command History --------- Turn | Location | Event 1 | -11/Scrapyard | Discovered new exit (range 3) 30 | -11/Scrapyard | Entered Materials 264 | -10/Materials | Discovered new exit (range 9) 469 | -10/Materials | Entered Mines 510 | -10/Mines | Met a Derelict testing a Signal Generator 522 | -10/Mines | Build established: Scavenger-Mutant 557 | -10/Mines | Discovered new exit (range 5) 856 | -10/Mines | Discovered new exit (range 3) 859 | -10/Mines | Entered Subcaves 860 | -10/Subcaves | Approached by a straggling Scientist 1021 | -10/Subcaves | Shifting Twisted Machinery released Sub. Beam Cannon 1052 | -10/Subcaves | Shifting Twisted Machinery released Sub. Machine Gun 1169 | -10/Subcaves | Visited Clippyterm 1173 | -10/Subcaves | Learned location of Deep Caves (-7) 1256 | -10/Subcaves | A swath of the cavern ceiling suddenly collapsed 1346 | -10/Subcaves | Ambushed by Subdweller buried in earth 1701 | -10/Subcaves | Discovered new exit (range 16) 1935 | -10/Subcaves | A Subdweller sparked back to life 1936 | -10/Subcaves | Core integrity fell below 50% 1955 | -10/Subcaves | Found Prototype Protection 2036 | -10/Subcaves | Ambushed by angry Subdweller bent on revenge 2346 | -10/Subcaves | Build established: Mutant 2573 | -10/Subcaves | A swath of the cavern ceiling suddenly collapsed 3467 | -10/Subcaves | Learned Materials terminal intel 3518 | -10/Subcaves | Visited 4L-MR0's lab 3524 | -10/Subcaves | Identified Gun Armor 3538 | -10/Subcaves | Found Powered Cannon 4058 | -10/Subcaves | Entered Materials 4058 | -8/Materials | Evolved 4 slots: Propulsion x1, Utility x3 4059 | -8/Materials | Loaded intel: 12 terminal locations 4392 | -8/Materials | Discovered new exit (range 8) 4755 | -8/Materials | Discovered new exit (range 5) 5054 | -8/Materials | Attached Gun Armor, gained temporary slots: Weapon x2 5123 | -8/Materials | Discovered new exit (range 3) 5340 | -8/Materials | Build established: Tank 5465 | -8/Materials | Learned Factory trap positions 5540 | -8/Materials | Learned 12 Factory zone layouts 5745 | -8/Materials | Learned location of 1 exit from Lower Caves 5773 | -8/Materials | Learned Storage emergency access door positions 5812 | -8/Materials | Learned Storage stockpile data 5863 | -8/Materials | Learned location of Lower Caves (-7) 5925 | -8/Materials | Learned location of 1 exit from Storage 6079 | -8/Materials | Garrison activated, responded to threat 6215 | -8/Materials | Identified exit to Garrison 6215 | -8/Materials | Entered Garrison 6247 | -8/Garrison | Triggered checkpoint 6491 | -8/Garrison | Triggered checkpoint 6605 | -8/Garrison | Triggered checkpoint 6809 | -8/Garrison | Triggered checkpoint 6867 | -8/Garrison | Discovered new exit (range 4) 6890 | -8/Garrison | Attempted to access garrison exit controls, blocked by remote lockdown 7210 | -8/Garrison | Discovered new exit (range 15) 7463 | -8/Garrison | Entered Materials 7717 | -8/Materials | Discovered new exit (range 16) 7863 | -8/Materials | First assault squad dispatched 8175 | -8/Materials | Entered Factory 8175 | -7/Factory | Evolved 2 slots: Propulsion x1, Utility x1 8176 | -7/Factory | Identified exit to Lower Caves 8177 | -7/Factory | Identified exit to Factory 8177 | -7/Factory | Identified exit to Storage 8178 | -7/Factory | Loaded intel: 102 trap records 8598 | -7/Factory | Build established: Mutant 8808 | -7/Factory | Lost 4 parts (2n1u1w) 8961 | -7/Factory | Entered Lower Caves 8962 | -7/Lower Caves | Identified exit to Lower Caves 8967 | -7/Lower Caves | Met a Warlord Commander 8968 | -7/Lower Caves | Learned location of Warlord (-4) 8969 | -7/Lower Caves | Warlord Commander delivered Encrypted Comm Array 8972 | -7/Lower Caves | Found Encrypted Comm Array 9669 | -7/Lower Caves | Learned Factory emergency access door positions 9798 | -7/Lower Caves | Spotted B-75 Beast 9823 | -7/Lower Caves | Destroyed B-75 Beast 10016 | -7/Lower Caves | Encountered a Warlord checkpoint 10732 | -7/Lower Caves | Entered another Lower Caves area 10761 | -7/Lower Caves | Discovered exit to Factory (range 19) 11239 | -7/Lower Caves | Learned Factory emergency access door positions 11252 | -7/Lower Caves | Encountered a Warlord checkpoint 11343 | -7/Lower Caves | Build established: Scavenger-Mutant 11546 | -7/Lower Caves | Learned Factory stockpile data 11648 | -7/Lower Caves | Discovered new exit (range 11) 11658 | -7/Lower Caves | Entered Zion 11701 | -7/Zion | System corruption cleaned by Quarantine Array 11877 | -7/Zion | Gained Derelict followers 11899 | -7/Zion | Discovered new exit (range 8) 12007 | -7/Zion | Given the Hacking Drone Bay 12079 | -7/Zion | Found Prototype Device 12209 | -7/Zion | Found CR-A16's Pointy Stick 12273 | -7/Zion | Learned location of Storage (-7) 12289 | -7/Zion | Learned location of 2 exits from Factory 12441 | -7/Zion | Given A8's code to call for help 12723 | -7/Zion | Met Imprinter 13943 | -7/Zion | Imprinted 13945 | -7/Zion | Declared Zion's savior 14058 | -7/Zion | Enhanced Grunt warped into view, answering call for help 14065 | -7/Zion | Enhanced Grunt warped into view, answering call for help 15449 | -7/Zion | Entered Proximity Caves 15449 | -6/Proximity Caves | Accompanied by 11 allies 15449 | -6/Proximity Caves | Spotted B-75 Beast 15459 | -6/Proximity Caves | Allies destroyed B-75 Beast 15518 | -6/Proximity Caves | Learned 8 Factory zone layouts 15788 | -6/Proximity Caves | Found Prototype Device 15788 | -6/Proximity Caves | Identified Exp. Thermal Shield 15811 | -6/Proximity Caves | Lost 4 allies 17125 | -6/Proximity Caves | Entered Factory 17125 | -6/Factory | Accompanied by 5 allies 17125 | -6/Factory | Evolved 2 slots: Power x1, Propulsion x1 17126 | -6/Factory | Identified exit to Factory 17126 | -6/Factory | Identified exit to Lower Caves 17127 | -6/Factory | Identified exit to Extension 17349 | -6/Factory | Zion Melee Resupply teleported in 17353 | -6/Factory | Found Prototype Launcher 17353 | -6/Factory | Identified Scatter Rocket Array 17576 | -6/Factory | Entered Extension 17576 | -6/Extension | Accompanied by 3 allies 17590 | -6/Extension | Identified Hacking Drone Bay 17607 | -6/Extension | Identified exit to Cetus 17613 | -6/Extension | Energy Cycler disabled 17615 | -6/Extension | Rescued a captive Derelict 17615 | -6/Extension | Rescued a captive Derelict 17618 | -6/Extension | Rescued a captive Derelict 17618 | -6/Extension | Rescued a captive Derelict 17722 | -6/Extension | Lost 5 allies 17993 | -6/Extension | Retrieved Zion intel report: Prototype Schematics 18458 | -6/Extension | Spotted B-75 Beast 18525 | -6/Extension | Discovered exit to Factory (range 12) 18533 | -6/Extension | Allies destroyed B-75 Beast 18579 | -6/Extension | Lost 4 allies 18700 | -6/Extension | Lost 4 allies 18737 | -6/Extension | Retrieved Zion intel report: Branch Access 18863 | -6/Extension | Terminal network hard line cut 18880 | -6/Extension | Lost 5 allies 19079 | -6/Extension | Lost 3 allies 19165 | -6/Extension | Discovered exit to Factory (range 10) 19300 | -6/Extension | Entered Cetus 19300 | -6/Cetus | Accompanied by 8 allies 19329 | -6/Cetus | Spotted Cetus Guard 19329 | -6/Cetus | Spotted Cetus Guard 19329 | -6/Cetus | Spotted Cetus Guard 19329 | -6/Cetus | Spotted Cetus Guard 19337 | -6/Cetus | Destroyed Cetus Guard 19341 | -6/Cetus | Destroyed Cetus Guard 19344 | -6/Cetus | Destroyed Cetus Guard 19345 | -6/Cetus | Destroyed Cetus Guard 19420 | -6/Cetus | Build established: Commander-Mutant 19425 | -6/Cetus | Discovered exit to Factory (range 21) 19495 | -6/Cetus | Discovered new exit (range 21) 19572 | -6/Cetus | Spotted Cetus Guard 19572 | -6/Cetus | Spotted Cetus Guard 19572 | -6/Cetus | Spotted Cetus Guard 19572 | -6/Cetus | Spotted Cetus Guard 19579 | -6/Cetus | Destroyed Cetus Guard 19582 | -6/Cetus | Destroyed Cetus Guard 19583 | -6/Cetus | Destroyed Cetus Guard 19586 | -6/Cetus | Destroyed Cetus Guard 19588 | -6/Cetus | Discovered exit to Factory (range 21) 19601 | -6/Cetus | Scared off Revision 17 19712 | -6/Cetus | Entered Archives 19712 | -6/Archives | Accompanied by 8 allies 19805 | -6/Archives | Discovered exit to Factory (range 14) 19835 | -6/Archives | Discovered new exit (range 22) 19840 | -6/Archives | Discovered new exit (range 18) 19931 | -6/Archives | System corruption reached 10% 20122 | -6/Archives | Unable to access archive contents 20319 | -6/Archives | Build established: Scavenger-Mutant 20688 | -6/Archives | Entered Hub_04(d) 20688 | -6/Hub_04(d) | Accompanied by 8 allies 20774 | -6/Hub_04(d) | Retrieved Zion intel report: Emergency Access 20775 | -6/Hub_04(d) | Zion Infowar Resupply teleported in 20865 | -6/Hub_04(d) | Lost 6 allies 21029 | -6/Hub_04(d) | Retrieved Zion intel report: Guard Positions 21093 | -6/Hub_04(d) | Retrieved Zion intel report: Active Terminals 21136 | -6/Hub_04(d) | Discovered exit to Factory (range 4) 21281 | -6/Hub_04(d) | Discovered exit to Factory (range 8) 21491 | -6/Hub_04(d) | Network Hub disabled 21496 | -6/Hub_04(d) | Network Hub disabled 21526 | -6/Hub_04(d) | Spotted Lightning 21528 | -6/Hub_04(d) | Spotted Lightning 21530 | -6/Hub_04(d) | Spotted Lightning 21538 | -6/Hub_04(d) | Destroyed Lightning 21576 | -6/Hub_04(d) | Destroyed Lightning 21579 | -6/Hub_04(d) | Destroyed Lightning 21581 | -6/Hub_04(d) | Spotted Lightning 21587 | -6/Hub_04(d) | Found Prototype Device 21587 | -6/Hub_04(d) | Identified Exp. EM Shield 21591 | -6/Hub_04(d) | Spotted Lightning 21591 | -6/Hub_04(d) | Spotted Lightning 21596 | -6/Hub_04(d) | Found Prototype Energy Cannon 21598 | -6/Hub_04(d) | Found Prototype Processor 21607 | -6/Hub_04(d) | Entered Factory 21607 | -5/Factory | Evolved 2 slots: Utility x2 21621 | -5/Factory | Lost 4 parts (1p3n) 21672 | -5/Factory | Zion Heavy squad teleported in 21913 | -5/Factory | Zion dispatch access revoked 22212 | -5/Factory | Found Prototype Protection 22212 | -5/Factory | Identified Zio. Weapon Casing 22253 | -5/Factory | Discovered new exit (range 5) 22259 | -5/Factory | Identified exit to Upper Caves 22390 | -5/Factory | Found Prototype Protection 22424 | -5/Factory | Identified Zio. Heavy Carapace 22426 | -5/Factory | Entered Upper Caves 22428 | -5/Upper Caves | Attracted the attention of an 0b10 outpost 22611 | -5/Upper Caves | Identified exit to Upper Caves 22673 | -5/Upper Caves | Learned Factory trap positions 24184 | -5/Upper Caves | Entered another Upper Caves area 24223 | -5/Upper Caves | Discovered new exit (range 2) 25541 | -5/Upper Caves | Learned 4 Factory zone layouts 25615 | -5/Upper Caves | Attracted the attention of an 0b10 base 25623 | -5/Upper Caves | Identified EMDS 25668 | -5/Upper Caves | Learned Armory garrison access intel 25668 | -5/Upper Caves | Learned Extension garrison access intel 25668 | -5/Upper Caves | Learned Research stockpile data 25668 | -5/Upper Caves | Learned Factory emergency access door positions 25668 | -5/Upper Caves | Learned Research trap positions 25890 | -5/Upper Caves | Attracted the attention of an 0b10 checkpoint 25986 | -5/Upper Caves | Spotted B-75 Beast 26002 | -5/Upper Caves | Revealed the true nature of CR-A16's Pointy Stick 26007 | -5/Upper Caves | Destroyed B-75 Beast 26037 | -5/Upper Caves | Lost 4 parts (1p3u) 26263 | -5/Upper Caves | Discovered new exit (range 13) 26415 | -5/Upper Caves | Entered Zhirov 26415 | -5/Zhirov | Discovered new exit (range 3) 26436 | -5/Zhirov | Met Zhirov 26472 | -5/Zhirov | Learned location of Quarantine (-2) 26472 | -5/Zhirov | Learned location of Testing (-3) 26472 | -5/Zhirov | Learned location of Command (-1) 26479 | -5/Zhirov | Zhirov requested help retrieving the SGEMP Prototype 26498 | -5/Zhirov | Found Alien Artifact 26498 | -5/Zhirov | Identified Integrated Dissipator 26498 | -5/Zhirov | Installed Integrated Dissipator, increased core heat dissipation (+20) 26649 | -5/Zhirov | Found Alien Artifact 26803 | -5/Zhirov | Build established: Messiah-Mutant 26889 | -5/Zhirov | Entered Proximity Caves 26928 | -4/Proximity Caves | Identified exit to Factory 27238 | -4/Proximity Caves | Encountered a Derelict sapper outpost 27989 | -4/Proximity Caves | Entered Factory 27989 | -4/Factory | Evolved 2 slots: Utility x1, Weapon x1 27990 | -4/Factory | Identified exit to Upper Caves 27992 | -4/Factory | Loaded intel: 116 trap records 28007 | -4/Factory | Discovered new exit (range 15) 28531 | -4/Factory | Retrieved Zion intel report: Branch Access 28532 | -4/Factory | Zion Explosive Resupply teleported in 28652 | -4/Factory | Entered Upper Caves 28929 | -4/Upper Caves | Encountered a Warlord checkpoint 29168 | -4/Upper Caves | Entered a destroyed Warlord outpost 29546 | -4/Upper Caves | Found DCF Scrap (12 items) 29585 | -4/Upper Caves | Learned location of Armory (-3) 30268 | -4/Upper Caves | Discovered new exit (range 13) 30395 | -4/Upper Caves | Entered another Upper Caves area 30396 | -4/Upper Caves | Identified exit to Warlord 30424 | -4/Upper Caves | Discovered new exit (range 5) 30658 | -4/Upper Caves | Spotted B-86 Titan 30701 | -4/Upper Caves | Destroyed B-86 Titan 30771 | -4/Upper Caves | Encountered a Warlord checkpoint 31629 | -4/Upper Caves | Learned location of 1 exit from Research 32033 | -4/Upper Caves | Entered Warlord 32500 | -4/Warlord | Found Prototype Device 32500 | -4/Warlord | Identified Exp. Cloaking Device 32506 | -4/Warlord | Found Prototype Device 32506 | -4/Warlord | Identified Exp. Focal Shield 32513 | -4/Warlord | Found Prototype Processor 32513 | -4/Warlord | Identified Exp. Target Analyzer 32530 | -4/Warlord | Found Prototype Reactor 32530 | -4/Warlord | Identified Vortex Chain Reactor 32613 | -4/Warlord | Warlord's base attacked by MAIN.C 32729 | -4/Warlord | Found Prototype Energy Cannon 32729 | -4/Warlord | Identified Vortex Cannon 32791 | -4/Warlord | Build established: Scavenger-Mutant 32929 | -4/Warlord | Found Prototype Ballistic Cannon 32929 | -4/Warlord | Identified Hvy. Autocannon 32963 | -4/Warlord | Warlord forces counterattacked 32995 | -4/Warlord | Spotted Striker 33005 | -4/Warlord | Allies destroyed Striker 33026 | -4/Warlord | Spotted Executioner 33053 | -4/Warlord | Spotted Executioner 33091 | -4/Warlord | Rebuked by Warlord 33111 | -4/Warlord | Lost 24 allies 33163 | -4/Warlord | Lost 3 allies 33232 | -4/Warlord | Build established: Messiah-Mutant 33288 | -4/Warlord | Warlord base infiltrated, sounded retreat 33347 | -4/Warlord | Lost 3 allies 33371 | -4/Warlord | Spotted Striker 33376 | -4/Warlord | Spotted Striker 33413 | -4/Warlord | Crushed by falling debris 33413 | -4/Warlord | Spotted Striker 33417 | -4/Warlord | Discovered new exit (range 14) 33425 | -4/Warlord | Lost 11 allies 33493 | -4/Warlord | Entered Proximity Caves 33493 | -3/Proximity Caves | Accompanied by 1 ally 33504 | -3/Proximity Caves | Unaware initiated a cargo recovery operation 33602 | -3/Proximity Caves | Spotter reported a threat 34596 | -3/Proximity Caves | Discovered new exit (range 9) 34938 | -3/Proximity Caves | Build established: Messiah-Gunner 35397 | -3/Proximity Caves | Entered Research 35397 | -3/Research | Evolved 2 slots: Propulsion x1, Utility x1 35398 | -3/Research | Identified exit to Testing 35399 | -3/Research | Loaded intel: 85 trap records 35411 | -3/Research | Zion Light squad teleported in 35437 | -3/Research | Identified Exp. Targeting Computer 35699 | -3/Research | Entered Testing 35699 | -3/Testing | Accompanied by 3 allies 35711 | -3/Testing | Found Prototype Device 35711 | -3/Testing | Identified Exp. Hardlight Generator 35736 | -3/Testing | Build established: Messiah-Mutant 35797 | -3/Testing | Found Prototype Device 35797 | -3/Testing | Identified 2N-1CE's Frost Array 35904 | -3/Testing | Repaired Centrium Medium Armor Plating? 36032 | -3/Testing | Retrieved Zion intel report: Active Terminals 36048 | -3/Testing | Discovered new exit (range 12) 36073 | -3/Testing | P-80 Master assimilated allied KE-Y7T(z) 36236 | -3/Testing | Retrieved Zion intel report: Component Stockpiles 36258 | -3/Testing | Spotted PD-4FEWYE62OA 36330 | -3/Testing | Retrieved Zion intel report: Emergency Access 36392 | -3/Testing | Retrieved Zion intel report: Component Schematics 36402 | -3/Testing | Spotted PP-GT4R3ZOULV 36492 | -3/Testing | Repaired Enh. Biometal Leg 36507 | -3/Testing | Found Prototype Processor 36507 | -3/Testing | Identified Spectral Analyzer 36538 | -3/Testing | Build established: Scavenger-Mutant 36623 | -3/Testing | Found Prototype Protection 36623 | -3/Testing | Identified SHELL Armor 36638 | -3/Testing | Attached Powered Cannon, gained temporary slot: Power 36913 | -3/Testing | Found Prototype Energy Cannon 36916 | -3/Testing | Found Prototype Energy Cannon 37021 | -3/Testing | Terminal network hard line cut 37330 | -3/Testing | System corruption reached 10% 37331 | -3/Testing | Entered Research 37331 | -2/Research | Evolved 2 slots: Power x1, Utility x1 37454 | -2/Research | Identified Imp. Potential Cannon (x2) 37623 | -2/Research | Discovered new exit (range 12) 37678 | -2/Research | Identified exit to Access 37812 | -2/Research | Spotted B-90 Cyclops 37815 | -2/Research | Destroyed B-90 Cyclops 37820 | -2/Research | Found Quantum Capacitor 37828 | -2/Research | Retrieved Zion intel report: Branch Access 37828 | -2/Research | Identified exit to Quarantine 37829 | -2/Research | Zion Explosive Resupply teleported in 37834 | -2/Research | Found Hellfire Missile Launcher 38003 | -2/Research | Spotted B-90 Cyclops 38066 | -2/Research | Destroyed B-90 Cyclops 38072 | -2/Research | Entered Quarantine 38111 | -2/Quarantine | Found Prototype Device 38145 | -2/Quarantine | Found Prototype Hackware 38164 | -2/Quarantine | Identified Exp. Transmission Jammer 38169 | -2/Quarantine | Found Alien Artifact 38206 | -2/Quarantine | Retrieved Zion intel report: Active Terminals 38221 | -2/Quarantine | Retrieved Zion intel report: Prototype Schematics 38275 | -2/Quarantine | Identified Exp. System Shield 38317 | -2/Quarantine | Retrieved Zion intel report: Component Schematics 38345 | -2/Quarantine | Retrieved Zion intel report: Emergency Access 38414 | -2/Quarantine | Found Alien Impact Weapon 38445 | -2/Quarantine | Cryocooling Duct disabled 38460 | -2/Quarantine | Ambient heat levels rising (+20) 38460 | -2/Quarantine | Non-combat units ordered to evacuate 38513 | -2/Quarantine | Retrieved Zion intel report: Component Schematics 38533 | -2/Quarantine | Retrieved Zion intel report: Depthwide Sectors/-1 38550 | -2/Quarantine | Retrieved Zion intel report: Prototype Stockpiles 38696 | -2/Quarantine | Retrieved Zion intel report: Component Schematics 38887 | -2/Quarantine | System corruption reached 10% 38902 | -2/Quarantine | Retrieved Zion intel report: Active Garrisons 38947 | -2/Quarantine | Found Alien Artifact 39011 | -2/Quarantine | Discovered exit to Access (range 23) 39016 | -2/Quarantine | Identified Core Reset Matrix 39016 | -2/Quarantine | Identified Transdimensional Reconstructor 39016 | -2/Quarantine | Identified Core Stripper 39016 | -2/Quarantine | Identified Subatomic Replicator 39016 | -2/Quarantine | Used Core Reset Matrix 39020 | -2/Quarantine | Detected hypermatrix surge 39020 | -2/Quarantine | Sensed 7 artifacts in vicinity 39022 | -2/Quarantine | Discovered exit to Access (range 19) 39056 | -2/Quarantine | Retrieved Zion intel report: Component Stockpiles 39223 | -2/Quarantine | Found Sigix Broadsword 39304 | -2/Quarantine | Terminal network hard line cut 39336 | -2/Quarantine | Spotted Fortress 39349 | -2/Quarantine | Destroyed Fortress 39371 | -2/Quarantine | Found Prototype Device 39371 | -2/Quarantine | Identified Thermal Barrier 39375 | -2/Quarantine | Found Prototype Device 39375 | -2/Quarantine | Identified Exp. Force Field 39379 | -2/Quarantine | Found Prototype Device 39379 | -2/Quarantine | Identified Exp. EM Shield 39397 | -2/Quarantine | Found Prototype Reactor 39397 | -2/Quarantine | Identified Vortex Chain Reactor 39400 | -2/Quarantine | Found Vortex Chain Reactor 39464 | -2/Quarantine | Discovered new exit (range 20) 39475 | -2/Quarantine | Discovered new exit (range 9) 39636 | -2/Quarantine | Build established: Alien-Assassin 39640 | -2/Quarantine | Entered Protoforge 39641 | -2/Protoforge | Sensed 2 artifacts in vicinity 39706 | -2/Protoforge | Spotted B-90 Cyclops 39731 | -2/Protoforge | Superfortress began startup sequence 39737 | -2/Protoforge | Destroyed B-90 Cyclops 39911 | -2/Protoforge | Retrieved Zion intel report: Main Access 39979 | -2/Protoforge | Spotted AP7-3 40121 | -2/Protoforge | Destroyed 8 combat bots 40413 | -2/Protoforge | Found Prototype Storage 40413 | -2/Protoforge | Identified Cep. NT7 Matterbank 40533 | -2/Protoforge | Additional patrols dispatched to research labs 40640 | -2/Protoforge | First assault squad dispatched 40741 | -2/Protoforge | Forge Plexus network access discovered 40743 | -2/Protoforge | Found Crosscalibrator 40746 | -2/Protoforge | Spotted Immortal 40780 | -2/Protoforge | Destroyed Immortal 40784 | -2/Protoforge | Found Corrupted Prototype Device 40786 | -2/Protoforge | Spotted Decapitator 40786 | -2/Protoforge | Spotted Decapitator 40786 | -2/Protoforge | Spotted Decapitator 40786 | -2/Protoforge | Spotted Decapitator 40797 | -2/Protoforge | Destroyed Decapitator 40797 | -2/Protoforge | Destroyed Decapitator 40797 | -2/Protoforge | Destroyed Decapitator 40819 | -2/Protoforge | Found Cep. Plasma Driver 40872 | -2/Protoforge | Terminal network hard line cut 40923 | -2/Protoforge | Found Faulty Cep. Rapid Grenade Launcher 40925 | -2/Protoforge | Found Corrupted Cep. Rapid Grenade Launcher 41021 | -2/Protoforge | Destroyed 10 combat bots 41126 | -2/Protoforge | Spotted Hotshot 41128 | -2/Protoforge | Spotted Hotshot 41145 | -2/Protoforge | Found Cep. Network Penetrator 41232 | -2/Protoforge | Spotted Hotshot 41232 | -2/Protoforge | Spotted Hotshot 41244 | -2/Protoforge | Destroyed Hotshot 41245 | -2/Protoforge | Destroyed Hotshot 41245 | -2/Protoforge | Destroyed Hotshot 41251 | -2/Protoforge | Destroyed Hotshot 41289 | -2/Protoforge | Destroyed 11 combat bots 41306 | -2/Protoforge | Spotted Decapitator 41306 | -2/Protoforge | Spotted Decapitator 41325 | -2/Protoforge | Destroyed Decapitator 41339 | -2/Protoforge | Found Cep. Hardlight Director 41344 | -2/Protoforge | Found Cep. Beam Splitter 41358 | -2/Protoforge | Found Faulty Exp. Force Field 41361 | -2/Protoforge | Found Exp. Force Field 41422 | -2/Protoforge | Spotted Decapitator 41422 | -2/Protoforge | Spotted Decapitator 41422 | -2/Protoforge | Spotted Decapitator 41422 | -2/Protoforge | Spotted Decapitator 41426 | -2/Protoforge | Destroyed Decapitator 41432 | -2/Protoforge | Destroyed Decapitator 41437 | -2/Protoforge | Destroyed Decapitator 41445 | -2/Protoforge | Build established: Alien-Mutant 41471 | -2/Protoforge | Destroyed Decapitator 41494 | -2/Protoforge | Found Cep. Antigrav Storage Unit 41497 | -2/Protoforge | Found Cep. Chromion Battery 41505 | -2/Protoforge | Found Cep. Chromion Battery 41523 | -2/Protoforge | Found Cep. Chromion Battery 41535 | -2/Protoforge | Spotted Immortal 41535 | -2/Protoforge | Spotted Immortal 41548 | -2/Protoforge | Spotted V111-a 41548 | -2/Protoforge | Spotted V327-g 41568 | -2/Protoforge | Spotted V216-g 41580 | -2/Protoforge | Identified Cep. Antimissile System 41588 | -2/Protoforge | Destroyed V216-g 41599 | -2/Protoforge | Warped through subspace 41626 | -2/Protoforge | Destroyed Immortal 41630 | -2/Protoforge | Destroyed Immortal 41687 | -2/Protoforge | Destroyed V111-a 41698 | -2/Protoforge | Destroyed V327-g 41703 | -2/Protoforge | Found Cep. Biometal Exoskeleton 41707 | -2/Protoforge | Found Faulty Cep. Biometal Exoskeleton 41719 | -2/Protoforge | Found Prototype Processor 41724 | -2/Protoforge | Identified Exp. Core Analyzer 41726 | -2/Protoforge | Found Cep. Biometal Exoskeleton 41729 | -2/Protoforge | Found Exp. EM Shield 41806 | -2/Protoforge | Spotted V348-e 41812 | -2/Protoforge | Scanned by Researcher 41816 | -2/Protoforge | Destroyed V348-e 41896 | -2/Protoforge | Destroyed 15 combat bots 41980 | -2/Protoforge | Found Cep. Zero-point Core 41982 | -2/Protoforge | Found Cep. Zero-point Core 42009 | -2/Protoforge | Spotted AP7-3 42011 | -2/Protoforge | Spotted AP7-3 42048 | -2/Protoforge | Destroyed AP7-3 42059 | -2/Protoforge | Destroyed AP7-3 42085 | -2/Protoforge | Found Prototype Processor 42085 | -2/Protoforge | Identified Exp. Target Analyzer 42118 | -2/Protoforge | Found Prototype Processor 42122 | -2/Protoforge | Found Prototype Processor 42128 | -2/Protoforge | Used Subatomic Replicator to replicate Faulty Cep. Thermoelectric Network 42129 | -2/Protoforge | Found Faulty Cep. Thermoelectric Network 42152 | -2/Protoforge | Identified Cep. Core Analysis Suite (x2) 42315 | -2/Protoforge | Found Transdimensional Reconstructor 42326 | -2/Protoforge | Found Cep. Navigation Harness 42428 | -2/Protoforge | Destroyed 8 combat bots 42581 | -2/Protoforge | Found Prototype Protection 42581 | -2/Protoforge | Identified Cep. RG22 Armor 42596 | -2/Protoforge | Found Cep. RG22 Armor 42684 | -2/Protoforge | Found Prototype Ballistic Cannon 42684 | -2/Protoforge | Identified Cep. Heavy Railcannon 42694 | -2/Protoforge | Found Cep. Heavy Railcannon 42701 | -2/Protoforge | Found Cep. Plasma Driver 42830 | -2/Protoforge | Spotted Hotshot 42830 | -2/Protoforge | Spotted Hotshot 42830 | -2/Protoforge | Spotted Hotshot 42831 | -2/Protoforge | Spotted Hotshot 42834 | -2/Protoforge | Entered Access 42834 | -1/Access | Evolved 2 slots: Utility x1, Weapon x1 43036 | -1/Access | Discovered new exit (range 7) 43084 | -1/Access | First assault squad dispatched 43143 | -1/Access | Entered Command 43231 | -1/Command | Retrieved Zion intel report: Component Stockpiles 43281 | -1/Command | Spotted B-99 Colossus 43393 | -1/Command | First assault squad dispatched 43393 | -1/Command | Retrieved Zion intel report: Component Schematics 43409 | -1/Command | Retrieved Zion intel report: Depthwide Sectors/-1 43480 | -1/Command | Retrieved Zion intel report: Guard Positions 43502 | -1/Command | Found Unknown Device 43560 | -1/Command | High security lockdown imminent 43640 | -1/Command | High security lockdown engaged 43670 | -1/Command | Identified Launcher Loader 43673 | -1/Command | Destroyed 10 combat bots 43682 | -1/Command | Found Prototype Processor 43896 | -1/Command | Spotted Investigator 43909 | -1/Command | Spotted Executioner 43954 | -1/Command | Destroyed 17 combat bots 43964 | -1/Command | Destroyed Executioner 43991 | -1/Command | Destroyed Investigator 44027 | -1/Command | Spotted Executioner 44027 | -1/Command | Spotted Striker 44027 | -1/Command | Spotted Striker 44039 | -1/Command | Spotted Striker 44039 | -1/Command | Spotted Executioner 44047 | -1/Command | Destroyed Striker 44075 | -1/Command | Destroyed Striker 44084 | -1/Command | Crushed by falling debris 44094 | -1/Command | Destroyed Executioner 44095 | -1/Command | Crushed by falling debris 44095 | -1/Command | System corruption reached 10% 44104 | -1/Command | Crushed by falling debris 44111 | -1/Command | Destroyed Executioner 44112 | -1/Command | Crushed by falling debris 44130 | -1/Command | Lost 9 parts (1n6u2w) 44139 | -1/Command | Destroyed 36 combat bots 44144 | -1/Command | Found Prototype Launcher 44357 | -1/Command | Spotted M Guard 44360 | -1/Command | Destroyed M Guard 44362 | -1/Command | Spotted M Guard 44362 | -1/Command | Spotted Combat Programmer 44362 | -1/Command | Spotted Combat Programmer 44390 | -1/Command | Destroyed M Guard 44400 | -1/Command | System corruption reached 30% 44405 | -1/Command | Destroyed Combat Programmer 44418 | -1/Command | Destroyed Combat Programmer 44418 | -1/Command | All MAIN.C guards destroyed 44430 | -1/Command | Lost 4 parts (1p2u1w) 44435 | -1/Command | Found Prototype Protection 44435 | -1/Command | Identified Hvy. Regenerative Plating 44439 | -1/Command | Found Prototype Reactor 44442 | -1/Command | Found Prototype Device 44448 | -1/Command | Found Prototype Device 44454 | -1/Command | Found Prototype Reactor 44456 | -1/Command | Found Hellfire Missile Launcher 44463 | -1/Command | Identified AEGIS Remote Shield (x2) 44478 | -1/Command | Identified Containment Facilitator 44479 | -1/Command | Spotted Executioner 44482 | -1/Command | Spotted Striker 44482 | -1/Command | Spotted Executioner 44483 | -1/Command | Spotted Executioner 44485 | -1/Command | Spotted Executioner 44496 | -1/Command | Spotted Striker 44497 | -1/Command | Destroyed Striker 44499 | -1/Command | Destroyed Executioner 44499 | -1/Command | Destroyed Executioner 44501 | -1/Command | Destroyed Executioner 44510 | -1/Command | Destroyed Striker 44530 | -1/Command | Destroyed Executioner 44539 | -1/Command | Spotted Executioner 44539 | -1/Command | Spotted Striker 44539 | -1/Command | Spotted Striker 44551 | -1/Command | Destroyed Striker 44552 | -1/Command | Core integrity fell below 50% 44563 | -1/Command | Spotted Striker 44563 | -1/Command | Spotted Executioner 44572 | -1/Command | Destroyed 22 combat bots 44575 | -1/Command | Spotted Executioner 44575 | -1/Command | Spotted Executioner 44575 | -1/Command | Spotted Striker 44580 | -1/Command | Destroyed Striker 44585 | -1/Command | Spotted Striker 44586 | -1/Command | Emitted hypermatrix ping 44591 | -1/Command | Assembled emerged from beneath the floor 44591 | -1/Command | Found Hellfire Missile Launcher 44594 | -1/Command | Destroyed Executioner 44594 | -1/Command | Destroyed Executioner 44600 | -1/Command | Destroyed Striker 44602 | -1/Command | Core integrity fell below 20% 44611 | -1/Command | Destroyed by P-80 Master with Gamma Rifle Last Messages --------------- 44607_ Cep. Zero-point Core destroyed. 44607_ Penetrated by Slug. 44607_ Cep. Heavy Railcannon destroyed. 44607_ Penetrated by Slug. 44607_ Identified Graviton Cannon. 44608_ P-80 Master resets P-80 Master, system corruption cleaned. 44608_ Cep. RG22 Armor severed. 44608_ Acquired Cep. RG22 Armor. 44608_ P-80 Master resets Executioner, system corruption cleaned. 44609_ P-80 Master resets L-61 Swordsman, system corruption cleaned. 44610_ Critical hit (Impale). 44610_ Critical hit (Burn: +37). 44610_ Penetrated by Slug. 44610_ Slug penetrates Reinforced Barrier. 44610_ Penetrated by Slug. 44610_ Cep. RG22 Armor severed. 44611_ Penetrated by Slug. 44611_ Slug penetrates Reinforced Barrier. 44611_ P-80 Master resets P-80 Master, system corruption cleaned. 44611_ P-80 Master resets Executioner, system corruption cleaned. Map ----- +----------------------------------------------------+ | ?????????????????????????????????????????????????? | | ?????????????????????????????????????????????????? | | ?????????????????????????????????????????????????? | | ?????????????????????????????????????????????????? | | ?????????????????????????????????????????????????? | | ?????????????????????????????????????????????????? | | ?????????????????????????????????????????????????? | | ?????????????????????????????????????????????????? | | ?????????????????????????????????????????????????? | | ?????????????????????????????????????????????????? | | ??????????????????????????????? #??????????????? | | ??????????????????????????????? #??????????????? | | ??????????????????????????????# #??????????????? | | ?????#######################??# #??????????????? | | + % #??#" #??????????????? | | " % #??#%" #??????????????? | | + %%" #??#" #??????????????? | | ???? ################### "####% #??????????????? | | ???????????????????????# ## ######?????????? | | ???????????????????????# ## /= ##?#####?## | | ???????????????????????# % # W # ### #?# | | ???????????????????????# ## # W # ### | | ???????????????????????# ! % % | | ???????????????????????# Eh *%= !%! | | ???????????????????????# ppg g %pp*% %% | | ???????????????????????# @l gppl/%%%% % | | ???????????????????????#KlKgE h p [ % % ! | | ???????????????????????# e #;%%! # W ##*% ### | | ???????????????????????###### # # [ #?# | | ????????????????????????????####### ;; #######?## | | ??????????????????????????????????### # #???????? | | ????????????????????????????????????????# #??????? | | ?????????????????????????????????????????##??????? | | ?????????????????????????????????????????????????? | | ?????????????????????????????????????????????????? | | ?????????????????????????????????????????????????? | | ?????????????????????????????????????????????????? | | ?????????????????????????????????????????????????? | | ?????????????????????????????????????????????????? | | ?????????????????????????????????????????????????? | | ?????????????????????????????????????????????????? | | ?????????????????????????????????????????????????? | | ?????????????????????????????????????????????????? | | ?????????????????????????????????????????????????? | | ?????????????????????????????????????????????????? | | ?????????????????????????????????????????????????? | | ?????????????????????????????????????????????????? | | ?????????????????????????????????????????????????? | | ?????????????????????????????????????????????????? | | ?????????????????????????????????????????????????? | +----------------------------------------------------+ Best States ------------- Heat Dissipation 172 Energy Generation 85 Energy Capacity 2850 Matter Stores 765 Matter Capacity 1050 Sight Range 24 Terrain Scan Range 20 Terrain Scan Density 10 Jamming Range 22 Cloak Strength 4 Power Amplification 30 Armor Coverage 1425 Resistance: KI 30 Resistance: TH 75 Resistance: EM 75 Core Shielding 30 Power Shielding 66 Propulsion Shielding 33 Utility Shielding 66 Weapon Shielding 100 Point Defense Rating 480 Weapon Cycling 20 Evasion (%) 65 Targeting Accuracy 12 Target Analysis 10 Core Analysis 11 Recoil Reduction 3 Matter Filtering 50 Particle Charging 30 Offensive Hacking 14 Item Schematics ----------------- Biometal Medium Treads | -1/Command | Z-intel Hyp. Railgun | -1/Command | Z-intel Lyr. Heavy Armor Plating | -1/Command | Z-intel Imp. Targeting Computer | -1/Command | Z-intel System Restoration Module | -1/Command | Z-intel Adv. Drone Bay | -1/Command | Z-intel Imp. Shock Absorption System | -1/Command | Z-intel Armor Integrity Analyzer | -1/Command | Z-intel Phase Gun | -1/Command | Z-intel System Shield | -1/Command | Z-intel Q-thruster | -1/Command | Z-intel Rnf. Quantum Reactor | -1/Command | Z-intel Adv. Remote Datajack | -1/Command | Z-intel Imp. Armor Integrity Analyzer | -1/Command | Z-intel Adv. Powered Armor | -1/Command | Z-intel Robot Schematics ------------------ None Fabricated ------------ Nothing Repaired ---------- Centrium Medium Armor Plating | 29% | -3/Testing Enh. Biometal Leg | 35% | -3/Testing Alien Tech Used ----------------- Integrated Dissipator Core Reset Matrix Sigix Broadsword Core Stripper Transdimensional Reconstructor Subatomic Replicator Achievements -------------- Boltbath Challenges ------------ None Game ------ Seed WarpTeslaConstruct Manual? 0 Play Time 11:19:31 Cumulative 468.3 hours Start 2025.06.19 @ 20:26:46 End 2025.06.23 @ 17:07:14 Sessions 37 Manual Loads 0 Difficulty Rogue Special Mode None Game No. 212 Rogue 212 Adventurer 0 Explorer 0 Win Type - Total 20 Types 6/3/6/2/1/0/1/0/0/1 Lore% 88 Gallery% 84 Achievement% 78 Wizard Run 0 Options --------- Layout 0 ASCII 0 Keyboard 0 Movement Arrows Keybinds 0 Fullscreen 2 Font 18/SmallcapsGlow Map View 76x50 Zoom Use 0% Tactical HUD 1 Map Filters NONE Filters NONE Steam 1 RUN: 20408bc1-bc00-4727-8321-3ec30b3b0ae5